Cogmind - Beta 17 @@@ ROGUE MODE // 2026.06.27 @ 13:36:00 Player: f3-rnm Result: Heading to fleet! Performance ------------- Evolutions (9) 4500 Regions Visited (23) 4600 Robots Destroyed (408) 2040 Value Destroyed (23887) 23887 Prototype IDs (384) 7680 Alien Tech Used (4) 800 Bonus (80547) 80547 TOTAL SCORE: 124054 Bonus ------- Triggered High Security 1000 High Alert Combat Kills 14896 Follower Combat Kills 2361 Prayed to X0-1V1 5000 Major X0-1V1 Interference 16500 Registered with UFD 300 Met Optimus in HQ 500 Met Imprinter 300 Destroyed Z-Imprinter 1000 Met Warlord at Base 500 MAIN.C Attacked Warlord 500 Warlord Defense Kills 2372 Used Core Reset Matrix 3000 Met Optimus at Protoforge 1000 Executed Drillbomb Mission 10000 Destroyed MAIN.C Guards 500 Met MAIN.C 5000 Destroyed MAIN.C Shell 5000 Destroyed MAIN.C 10000 Win 3000 Friendly Fire -2182 Cogmind --------- Core Integrity 1430/1700 Matter 424/900 Energy 345/350 System Corruption 8% Temperature Cool (10) Movement Hovering (45) Location To Fleet Rendezvous Parts ------- > --- POWER (3) -------- Quantum Reactor > --- PROPULSION (9) --- Antigrav System Antigrav System Antigrav System Combat Linear Gravjet Combat Linear Gravjet > --- UTILITY (10) ----- (None) > --- WEAPON (4) ------- (None) > --- INVENTORY (5) ---- Concept NT7 Matterbank (750) Experimental Reaction Control System Advanced Force Field Fusion Bomb Launcher Concept Blasthammer Peak State ------------ > --- POWER ------------ Improved Quantum Reactor Concept Zero-point Core Concept Zero-point Core > --- PROPULSION ------- Combat Antigrav System Experimental Antigrav System Gravjet Array Concept Combat Aerolev Unit Concept Gyrokinetic System Concept Gyrokinetic System Concept Gyrokinetic System > --- UTILITY ---------- Concept Antigrav Storage Unit Experimental Active Sensor Suite Experimental Core Analyzer Femtoactuators Experimental Reaction Control System Concept Cloak Mesh Graphene Brace Advanced Force Field X0-1V1's Piety Tracker > --- WEAPON ----------- Concept Blasthammer Vibroblade Concept Deflector Sword Experimental Jetlance Experimental Jetlance > --- INVENTORY -------- Quantum Reactor Cooled Linear Gravjet Cooled Linear Gravjet Gravjet Array Concept Combat Aerolev Unit Concept Gyrokinetic System 2N-1CE's Frost Array Concept Thermoelectric Network Concept Chromion Battery Concept NT7 Matterbank Concept Weapon Articulator Experimental Core Analyzer Advanced Force Booster Makeshift Heavy Armor Plating Experimental EM Shield Advanced Force Field Concept Impact Drone Bay Concept Impact Drone Bay Transdimensional Reconstructor Concept Plasma Driver Concept Plasma Driver Concept Plasma Driver [Rating: 306] Favorites ----------- Power Concept Zero-point Core Engine Light Angular Momentum Engine Power Core Concept Zero-point Core Reactor Vortex Chain Reactor Propulsion Combat Linear Gravjet Treads Improved Treads Leg Myomer Leg Wheel Overtuned Huge Scrapsphere Hover Unit Combat Linear Gravjet Utility X0-1V1's Piety Tracker Device X0-1V1's Piety Tracker Storage High-capacity Storage Unit Processor Experimental Core Analyzer Hackware System Mapper Protection Centrium Medium Armor Plating Weapon Heavy Scimitar of Distortion Energy Gun Spread Laser Energy Cannon Enhanced Nova Cannon Ballistic Gun Heavy Battle Rifle Ballistic Cannon Antimatter Cannon Launcher Scatter Rocket Array Special Weapon RU-N14's Throwing Claymores Impact Weapon Heavy Hammer Slashing Weapon Heavy Scimitar of Distortion Piercing Weapon Experimental Jetlance Build | -11 -10 -10 -8 -8 -6 -6 -6 -6 -6 -5 -5 -4 -4 -4 -4 -3 -3 -3 -2 -2 -2 -1 -1 ------- Run | Yrd Mat Sub Rec Scr Fac Low Low Zio Dee Pro Fac Fac Upp Upp War Pro Res Tes Res Qua Frg Acc Com Slots Evolved 18 | . . . . . 8 . . . . . 2 2 . . . . 2 . 2 . . 2 . Power 1 | . . . . . . . . . . . . . . . . . . . . . . 1 . Propulsion 7 | . . . . . 3 . . . . . 2 . . . . . 1 . 1 . . . . Utility 8 | . . . . . 4 . . . . . . 1 . . . . 1 . 1 . . 1 . Weapon 2 | . . . . . 1 . . . . . . 1 . . . . . . . . . . . Parts Attached 344 | 6 6 14 1 5 21 2 11 6 16 1 9 12 16 12 27 1 14 14 4 6 109 10 21 Power 31 | 1 . 2 . 2 3 . . . 2 . . . 2 2 1 . . 1 . . 9 2 4 Engine 4 | 1 . 1 . 2 . . . . . . . . . . . . . . . . . . . Core 12 | . . 1 . . 2 . . . . . . . 2 2 . . . . . . 5 . . Reactor 15 | . . . . . 1 . . . 2 . . . . . 1 . . 1 . . 4 2 4 Propulsion 77 | 2 2 1 1 1 4 . 2 . 4 . 7 1 2 5 6 . 3 1 1 3 21 2 8 Treads 12 | 2 2 1 1 . 4 . . . . . . . . . . . . . . . . . 2 Leg 11 | . . . . . . . 2 . . . 4 1 . 4 . . . . . . . . . Wheel 6 | . . . . 1 . . . . . . 2 . 2 1 . . . . . . . . . Hover 48 | . . . . . . . . . 4 . 1 . . . 6 . 3 1 1 3 21 2 6 Flight . | . . . . . . . . . . . . . . . . . . . . . . . . Utility 148 | 1 2 4 . 1 6 2 1 2 6 . . 6 8 3 15 . 9 9 1 . 59 6 7 Device 94 | . 1 3 . . 4 . 1 . 5 . . 2 7 2 10 . 7 4 1 . 38 5 4 Storage 8 | 1 1 . . 1 . . . . 1 . . 1 . . 1 . 1 . . . 1 . . Processor 20 | . . . . . 1 1 . 2 . . . 3 1 . 1 . . 2 . . 8 . 1 Hackware 2 | . . . . . . . . . . . . . . . . . 1 1 . . . . . Protection 24 | . . 1 . . 1 1 . . . . . . . 1 3 . . 2 . . 12 1 2 Artifact . | . . . . . . . . . . . . . . . . . . . . . . . . Weapon 88 | 2 2 7 . 1 8 . 8 4 4 1 2 5 4 2 5 1 2 3 2 3 20 . 2 Energy Gun 17 | 1 2 1 . . 2 . 4 . 2 . 1 . . . 2 . . 1 1 . . . . Energy Cannon 8 | . . 1 . . 1 . . . . . . . . . . 1 1 . 1 1 2 . . Ballistic Gun 11 | 1 . 2 . . 1 . 4 1 . . 1 . 1 . . . . . . . . . . Ballistic Cannon 3 | . . 1 . . 2 . . . . . . . . . . . . . . . . . . Launcher 11 | . . 2 . . 2 . . . . . . . . . 1 . 1 1 . 1 2 . 1 Special Weapon 7 | . . . . . . . . 3 2 . . . . . 1 . . 1 . . . . . Impact Weapon 13 | . . . . . . . . . . 1 . 5 3 2 . . . . . . 2 . . Slashing Weapon 11 | . . . . 1 . . . . . . . . . . . . . . . 1 8 . 1 Piercing Weapon 7 | . . . . . . . . . . . . . . . 1 . . . . . 6 . . Special Melee Weapon . | . . . . . . . . . . . . . . . . . . . . . . . . Unidentified Prototypes 81 | . . 2 . . 5 1 . 3 9 . . 1 . . 15 . 3 10 1 3 26 . 2 Corrupted Parts 7 | . . . . . . . . . . . . 1 1 4 . . . . . . . . 1 System Corruption 37 | . . . . . . . . . . . . 1 5 29 . . . . . . . . 2 Parts Lost 114 | . . 6 . . 3 . 5 . 1 . 18 3 3 7 4 . . 3 . . 34 1 26 Power 16 | . . 3 . . 1 . . . . . 2 . . 2 . . . . . . 2 1 5 Propulsion 33 | . . 1 . . . . 2 . . . 6 3 1 3 . . . . . . 7 . 10 Utility 41 | . . 1 . . 2 . 1 . 1 . 2 . 1 2 3 . . 3 . . 15 . 10 Weapon 24 | . . 1 . . . . 2 . . . 8 . 1 . 1 . . . . . 10 . 1 Highest Loss Streak 18 | . . 1 . . 3 . 4 . 1 . 18 2 3 4 2 . . 3 . . 7 1 17 To Critical Strikes 1 | . . . . . . . . . . . . . . . . . . . . . 1 . . Average Backups 15 | 1 10 14 14 15 14 17 17 17 17 18 14 5 8 9 7 6 8 10 12 11 19 23 12 Power . | . 1 . . . . 1 1 1 1 . . . . . . . . . . 1 1 1 . Propulsion 2 | . 5 5 5 5 3 2 1 1 1 1 . . . . . . . 1 . . 1 4 1 Utility 5 | . . 1 2 2 1 2 3 3 5 8 8 4 7 7 5 4 5 7 7 7 10 13 6 Weapon 5 | . 3 6 6 6 6 8 10 9 8 7 4 . . 1 1 2 2 2 3 2 4 3 3 Tool/Special . | . . . . . . . . . . . . . . . . . . . . . . . . Unused Backups 86 | . . 4 1 . 1 1 1 . . . 2 . . . 6 3 5 4 . 1 43 3 11 Power 5 | . . . . . . . . . . . . . . . . . . . . . 4 . 1 Propulsion 18 | . . 1 . . . 1 . . . . . . . . . 2 . 2 . 1 9 . 2 Utility 29 | . . . . . . . . . . . 2 . . . 4 1 3 2 . . 11 . 6 Weapon 31 | . . 3 1 . 1 . 1 . . . . . . . 2 . 2 . . . 17 3 1 Tool/Special 3 | . . . . . . . . . . . . . . . . . . . . . 2 . 1 Average Slot Usage (%) 84 | . 97 79 75 89 89 93 93 89 88 88 61 77 72 79 77 88 84 82 81 89 86 90 49 Engine 3 | . 14 4 . 15 4 5 6 6 2 . . . . . . . . . . . . . . Core 4 | . . 3 . 3 3 5 6 6 2 . 3 . 6 7 4 . . . . . 6 7 2 Reactor 1 | . . . . . . . . . 6 11 3 . . . 2 5 4 4 4 4 1 3 2 Treads 8 | . 27 21 12 8 19 22 13 12 11 . . . . . . . . . . . . . 1 Leg 2 | . . . . 3 . . 5 5 . . . 19 5 13 4 . . . . . . . . Hover 10 | . . . . . . . . . 9 23 14 . . . 6 30 28 29 33 36 28 27 17 Device 21 | . 12 10 25 25 23 28 26 24 31 36 26 21 23 23 25 25 27 20 15 15 19 24 12 Storage 6 | . 14 13 12 12 5 5 6 6 6 6 4 3 5 5 5 5 4 4 4 4 3 3 1 Processor 2 | . . . . . 1 . 6 9 3 . . 8 1 . . . . 5 8 8 4 3 1 Protection 2 | . . 2 . . 1 3 4 2 . . . . . 1 1 10 4 . 4 4 5 . 1 Energy Gun 3 | . 27 8 . . 5 5 2 2 2 2 . . . . . . . . 1 . . . . Energy Cannon 2 | . . . 16 8 2 1 . . 8 2 . . . . . 3 4 4 2 3 1 . . Ballistic Gun 1 | . . 5 6 . 2 5 11 1 1 1 4 . 3 . . . . . . . . . . Ballistic Cannon 2 | . . 6 . 7 11 6 1 3 . . . . . . . . . . . . . . . Impact Weapon 2 | . . . . . 2 1 . . . 1 . 23 17 21 15 5 2 . . . 1 2 . Slashing Weapon 2 | . . . . . . . 1 2 . . . . 2 . . . . . . 3 9 7 3 Peak Build Rating 306 | 6 14 33 37 54 106 105 102 111 128 127 114 84 104 111 156 168 181 185 211 233 287 306 293 Average Rating 124 | 4 11 19 34 47 84 95 94 101 110 118 92 80 88 98 119 158 166 168 202 222 258 296 143 On Entrance 115 | . 6 14 33 35 51 105 95 91 108 127 103 60 77 104 108 152 161 162 185 211 226 261 295 Avg Prop Armor Cover (%) 5 | . . . . . 4 . 3 4 . . 15 13 4 5 7 . . . . . 1 . 10 Naked Turns 89 | . . . . . . . . . . . . . . . . . . . . . . . 89 Heaviest Build 132 | 13 32 52 29 84 111 118 98 103 97 94 69 33 66 70 104 92 89 99 91 103 132 128 122 Greatest Support 160 | 40 46 46 28 28 113 99 99 105 105 82 67 60 40 100 82 94 94 102 110 124 146 142 160 Greatest Overweight (x) 6 | . 1 2 1 6 1 1 1 1 2 1 4 2 1 3 6 . 1 1 . . 1 . 3 Average Overweight (x) . | . . . . 2 . . . . . . . . . . 1 . . . . . . . . Largest Inventory Capacity 25 | 8 15 15 15 20 20 20 20 20 20 20 20 10 10 10 10 10 15 15 15 15 25 25 25 Average Capacity 17 | 7 13 15 15 18 20 20 20 20 20 20 18 8 10 10 10 10 12 15 15 15 23 25 15 Most Carried 25 | 3 14 15 15 20 20 20 20 20 20 20 20 9 10 10 10 10 15 15 15 15 25 25 25 Average Carried 16 | 1 10 14 14 17 18 19 19 19 18 19 15 6 8 9 9 9 12 14 14 14 21 24 13 Final Capacity 25 | 8 15 15 15 20 20 20 20 20 20 20 5 10 10 10 10 10 15 15 15 15 25 25 5 Final Carried 25 | 3 14 15 15 19 20 20 17 19 20 20 5 9 10 10 10 10 15 15 15 11 25 24 5 Scrap Suit Usage (%) 5 | . . . . . . . . . . . . . 6 6 95 . . . . . . . . Parts Cannibalized 2 | . . . . . . . . . . . . . 1 1 . . . . . . . . . Transmogrified Parts 111 | . . 1 7 41 14 5 10 18 5 5 1 4 . . . . . . . . . . . Integrity Recovered 1224 | . . 13 129 190 227 48 127 444 11 . 6 29 . . . . . . . . . . . Class Distribution -------------------- 36% | Mutant 15% | Scavenger-Sprinter 7% | Scavenger-Mutant 7% | Scavenger-Scrapper 6% | Derelict-Gunner 4% | Gladiator 3% | Scavenger-Ninja 3% | Derelict-Mutant Dominant Class ---------------- Mutant | -10/Materials Mutant | -10/Subcaves Mutant | -8/Recycling Mutant | -8/Scraptown Skirmisher | -6/Factory Executioner | -6/Lower Caves Derelict-Gunner | -6/Lower Caves Mutant | -6/Zion Scavenger-Mutant | -6/Deep Caves Scavenger-Mutant | -5/Proximity Caves Scavenger-Mutant | -5/Factory Gladiator | -4/Factory Scavenger-Scrapper | -4/Upper Caves Scavenger-Gladiator | -4/Upper Caves Scavenger-Scrapper | -4/Warlord Scavenger-Sprinter | -3/Proximity Caves Scavenger-Mutant | -3/Research Scavenger-Mutant | -3/Testing Scavenger-Scout | -2/Research Hacker-Ninja | -2/Quarantine Scavenger-Sprinter | -2/Protoforge Scavenger-Ninja | -1/Access Mutant | -1/Command Resources | -11 -10 -10 -8 -8 -6 -6 -6 -6 -6 -5 -5 -4 -4 -4 -4 -3 -3 -3 -2 -2 -2 -1 -1 ----------- Run | Yrd Mat Sub Rec Scr Fac Low Low Zio Dee Pro Fac Fac Upp Upp War Pro Res Tes Res Qua Frg Acc Com Matter Collected 16659 | 263 100 621 92 345 468 164 295 44 188 247 339 577 672 384 793 63 1412 112 . 93 8484 113 790 Remotely 458 | . . . . . . . . . . . . . . . . . . . . . 458 . . Salvage Created 17554 | 25 400 333 . . 733 316 311 . 87 62 370 495 286 492 398 . 907 249 25 400 8761 1295 1609 Parts 584 | 3 22 26 . . 24 17 13 . 4 1 14 8 12 15 10 . 40 19 2 9 264 44 37 Haulers Intercepted 8 | . 1 . . . 2 . . . . . . . . . . . 3 . . . 1 1 . Recyclers Shooed 8 | . 1 . . . . . . . . . 3 . . . . . 3 1 . . . . . Parts Field Recycled . | . . . . . . . . . . . . . . . . . . . . . . . . Retrieved Matter . | . . . . . . . . . . . . . . . . . . . . . . . . Parts Self-Destructed 67 | . . 25 . . . 14 11 . . 6 . . 4 7 . . . . . . . . . Prevented 12 | . . . . . . . . . . . . . 1 11 . . . . . . . . . Parts Restored 9 | . . . . . . . . . . . . . . . . . . . . . 9 . . Faulty 9 | . . . . . . . . . . . . . . . . . . . . . 9 . . Kills | -11 -10 -10 -8 -8 -6 -6 -6 -6 -6 -5 -5 -4 -4 -4 -4 -3 -3 -3 -2 -2 -2 -1 -1 ------- Run | Yrd Mat Sub Rec Scr Fac Low Low Zio Dee Pro Fac Fac Upp Upp War Pro Res Tes Res Qua Frg Acc Com Combat Hostiles Destroyed 349 | . 10 22 . . 15 9 18 . 3 2 9 7 5 12 14 . 3 6 . 4 180 14 16 Melee 61 | . . . . . . . . . . . . 1 2 5 . . . . . 1 32 9 11 Guns 27 | . 10 7 . . . . 3 . . 1 5 . . . . . . . . 1 . . . Cannons 21 | . . . . . 5 4 3 . 3 . . . . . . . . . . . 6 . . AOE 202 | . . 15 . . 10 5 12 . . 1 4 . . . 14 . 3 6 . 2 126 2 2 Classes Destroyed 32 | 1 5 3 . . 4 1 1 . 2 1 1 . 2 . 3 . . 1 . . 7 . . Worker 10 | 1 . . . . . . . . . . . . . . . . 3 1 1 . . 4 . Builder 5 | . . . . . . . . . . . 1 . . . . . 2 . . 1 . 1 . Tunneler 2 | . 1 . . . 1 . . . . . . . . . . . . . . . . . . Hauler 10 | . 1 . . . 2 . . . . . . . . . . . 3 . . . 3 1 . Recycler 8 | . 1 . . . 2 . . . . . 1 1 . . . . 3 . . . . . . Carrier 1 | . . . . . . . . . . . . . . . . . . . . . 1 . . Mechanic 10 | . . . . . . . . . . . . . . . . . . . . . 10 . . Operator 6 | . . . . . . . . . . . . 1 . . . . 2 . . . 2 1 . Drone 21 | . . . . . . . . . . 1 . . . . . . . . . . 20 . . Turret 1 | . . 1 . . . . . . . . . . . . . . . . . . . . . Watcher 5 | . 1 . . . . . . . . . . . . . . . . . . 1 . 2 1 Swarmer 55 | . . 10 . . 3 3 8 . . . 4 . 5 6 . . 3 4 . . 9 . . Cutter 9 | . . . . . . . . . . . . . . . . . . . . . . 1 8 Saboteur 4 | . . . . . . . . . . . . . . . . . . . . . 4 . . Grunt 91 | . 10 6 . . 4 4 7 . . 1 2 . . 4 6 . . 2 . 3 38 4 . Brawler 3 | . . . . . . . . . . . . . . . . . . . . . 3 . . Duelist 9 | . . . . . . . 1 . . . . . . . . . . . . . 8 . . Protector 7 | . . . . . . . . . . . . . . . . . . . . . 7 . . Researcher 5 | . . . . . . . . . . . . . . . . . . 1 . . 4 . . Sentry 27 | . . . . . . 1 2 . . . 1 3 . . . . . . . 1 13 6 . Demolisher 3 | . . . . . 2 . . . . . . . . . . . . . . . . . 1 Specialist 4 | . . . . . . . . . . . . . . . 4 . . . . . . . . Hunter 40 | . . . . . 1 . . . . . 2 2 . 2 . . . . . . 31 2 . Programmer 17 | . . . . . 2 1 . . . . . 2 . . . . . . . . 10 1 1 Decapitator 10 | . . . . . . . . . . . . . . . . . . . . . 10 . . Immortal 7 | . . . . . . . . . . . . . . . . . . . . . 7 . . Striker 6 | . . . . . . . . . . . . . . . 2 . . . . . 4 . . Executioner 19 | . . . . . . . . . . . . . . . 2 . . . . . 13 . 4 Alpha 7 1 | . . . . . . . . . . . . . . . . . . . . . 1 . . V-Series 4 | . . . . . . . . . . . . . . . . . . . . . 4 . . Subdweller 6 | . . 6 . . . . . . . . . . . . . . . . . . . . . Scrapoid 2 | . . . . . . . . . . . . . 1 . . . . . . . 1 . . Z-Technician 1 | . . . . . . . . . 1 . . . . . . . . . . . . . . Z-Light 1 | . . . . . . . . . 1 . . . . . . . . . . . . . . Decomposer 1 | . . . . . . . . . . . . . 1 . . . . . . . . . . Assembled 5 | . . . . . 3 . . . 2 . . . . . . . . . . . . . . Savage 1 | . . . . . . . . . . . . . 1 . . . . . . . . . . Best Kill Streak 54 | 1 3 8 . . 6 5 13 . 2 1 5 2 3 4 9 . 7 5 1 5 54 5 5 Combat Bots Only 51 | . 2 8 . . 6 5 13 . 2 1 5 2 5 4 9 . 3 4 . 3 51 5 5 Max Kills in Single Turn 7 | 1 1 3 . . 4 5 3 . 1 1 3 1 1 1 4 . 3 3 1 2 7 2 2 Gunslinging . | . . . . . . . . . . . . . . . . . . . . . . . . Exploded 7 | . . 3 . . 4 5 3 . . 1 3 . . . 4 . 3 3 . 1 7 1 2 Melee 1 | . . . . . . . . . . . . 1 1 1 . . . . . 1 1 1 1 Uniques/NPCs Destroyed 3 | . . . . . . . . . 1 . . . . . . . . . . . . . 2 Z-Imprinter (-6/Deep Caves) MAIN.C Shell (-1/Command) MAIN.C (-1/Command) Combat | -11 -10 -10 -8 -8 -6 -6 -6 -6 -6 -5 -5 -4 -4 -4 -4 -3 -3 -3 -2 -2 -2 -1 -1 -------- Run | Yrd Mat Sub Rec Scr Fac Low Low Zio Dee Pro Fac Fac Upp Upp War Pro Res Tes Res Qua Frg Acc Com Hostile Shots Fired 2339 | . 25 100 . . 37 9 85 . 22 8 138 119 49 164 108 8 26 70 9 55 954 96 257 Missed 946 | . 6 36 . . 13 4 16 . 2 4 41 44 10 33 46 3 15 43 4 23 459 55 89 Deflected 10 | . . . . . . . . . . . . . . . . . . . . . 6 . 4 Hits 1393 | . 19 64 . . 24 5 69 . 20 4 97 75 39 131 62 5 11 27 5 32 495 41 168 Melee 70 | . . . . . 4 . 1 . . 1 . . . . 1 . . . . . 36 1 26 Projectile 1323 | . 19 64 . . 20 5 68 . 20 3 97 75 39 131 61 5 11 27 5 32 459 40 142 AOE 35 | . . . . . 3 . . . . . 2 . . . . . . . . . 17 1 12 Critical Strikes 108 | . 1 . . . . 1 6 . . . 5 4 . 1 5 . . 2 . 1 55 2 25 Actively Blocked 92 | . . . . . . . . . . . 5 4 . 1 . . . 2 . 1 52 2 25 Part Disruptions 1 | . . . . . . . . . . . . . . . . . . . . . . . 1 Damage Taken 34126 | . 302 990 . . 697 82 1632 . 574 89 2119 1371 597 2115 1683 69 223 512 114 629 14307 834 5187 Core 4394 | . 29 150 . . 81 . 104 . 116 . 602 320 188 274 82 . 14 24 49 14 1227 192 928 Absorbed by Shields 3919 | . . . . . . . . . . . . . . . . . 24 82 . . 1956 568 1289 Redirected to Shielding 464 | . . . . . . . . . . . . . . . . 19 . . . . . 43 402 Ignored by Resistances 730 | . . . . . . . . . . . . . . . 6 18 . 96 . 128 392 . 90 Regen/Repaired (Parts) 4122 | . . . . . . . . 882 . . . . 10 4 71 . . 1 52 301 2801 . . Core Remaining (%) 79 | 100 . . . 86 . . . . . 68 45 . . . . 88 . 97 . . 69 . 84 Volleys Fired 533 | 1 30 70 . . 27 7 25 3 17 5 42 . 12 . 11 . 31 17 3 20 194 6 12 Largest 5 | 2 2 2 . . 4 5 3 1 2 1 4 . 1 . 1 . 1 1 1 1 2 1 1 Hottest 300 | 60 130 130 . . 145 198 168 90 176 73 178 . 32 . 160 . 120 120 300 300 300 140 140 Shots Fired 729 | 2 60 97 . . 67 27 58 3 25 5 71 . 13 . 11 . 32 19 3 20 198 6 12 Gun 260 | 2 60 57 . . 9 12 37 . 5 4 53 . 13 . 1 . . . 2 4 1 . . Cannon 295 | . . 29 . . 52 14 13 3 16 . 12 . . . . . 31 16 1 16 75 6 11 Launcher 169 | . . 11 . . 6 1 8 . . 1 6 . . . 9 . 1 3 . . 122 . 1 Special 5 | . . . . . . . . . 4 . . . . . 1 . . . . . . . . Kinetic 213 | 1 . 40 . . 52 16 41 . 5 2 43 . 13 . . . . . . . . . . Thermal 351 | 1 60 47 . . 15 10 11 3 10 3 28 . . . . . 31 16 3 20 76 6 11 Explosive 149 | . . 10 . . . 1 . . 2 . . . . . 9 . 1 3 . . 122 . 1 Electromagnetic 12 | . . . . . . . 6 . 6 . . . . . . . . . . . . . . Entropic 1 | . . . . . . . . . . . . . . . 1 . . . . . . . . Robot Hit Streak 19 | . 9 11 . . 8 9 8 . 6 1 13 . 10 . 6 . 4 2 4 9 19 . . Robot Miss Streak 8 | 2 4 8 . . 7 6 4 . 3 3 4 . 2 . 4 . 2 4 1 6 2 . 4 Penetration Max 2 | . . . . . . . . . . . 1 . . . . . . . . . 2 . . Secondary Targets 1 | . . . . . . . . . . . 1 . . . . . . . . . . . . Max Gunslinging Chain 1 | . . . . . . . . . . . 1 . . . . . . . . . . . . Shots Hit Robots 731 | . 45 58 . . 33 19 36 . 14 1 51 47 19 30 9 . 22 3 1 7 231 51 54 Core Hits 873 | 1 66 72 . . 37 23 53 . 8 6 30 3 5 4 44 . 15 9 2 16 428 23 28 Critical Kills 14 | . . . . . . . . . . . . 1 1 1 . . . . . . 10 . 1 Critical Parts Destroyed 50 | . . . . . 1 . . . . . . 14 5 8 . . . . . . 16 5 1 Critical Strikes 119 | . . . . . 1 1 . . 1 . 1 18 6 9 . . 3 . . . 51 15 13 Burn 2 | . . . . . . 1 . . . . 1 . . . . . . . . . . . . Meltdown 3 | . . . . . . . . . . . . . . . . . . . . . 3 . . Destroy 18 | . . . . . . . . . . . . . 1 . . . . . . . 17 . . Smash 46 | . . . . . 1 . . . . . . 18 5 9 . . . . . . 6 5 2 Sever 5 | . . . . . . . . . 1 . . . . . . . . . . . 3 . 1 Impale 45 | . . . . . . . . . . . . . . . . . 3 . . . 22 10 10 Melee Attacks 637 | . . . . . 2 . . . . 1 . 50 21 68 1 . 30 8 . 9 239 120 88 Impact 241 | . . . . . 2 . . . . 1 . 50 19 68 1 . 1 . . . 30 57 12 Slashing 222 | . . . . . . . . . . . . . 2 . . . . . . 7 157 26 30 Piercing 174 | . . . . . . . . . . . . . . . . . 29 8 . 2 52 37 46 Sneak Attacks 43 | . . . . . 2 . . . . . . 2 1 . . . 12 1 . . 18 7 . Combat Hostiles 1 | . . . . . . . . . . . . . . . . . . . . . 1 . . Follow-up Attacks 144 | . . . . . . . . . . . . 18 6 38 . . . . . . 41 21 20 Damage Inflicted 84759 | 10 590 1695 . . 2041 701 2321 . 1023 244 1909 1858 668 1135 3511 . 2026 1057 140 1097 53709 5300 3724 Guns 3111 | 10 590 674 . . 87 184 442 . . 34 835 . 226 . . . . . 4 25 . . . Cannons 7665 | . . 169 . . 609 232 231 . 317 . 188 . . . . . 86 . . 41 5792 . . Explosions 50632 | . . 852 . . 1180 285 1648 . 643 210 886 . . . 3489 . 323 927 50 765 37367 1471 536 Melee 23103 | . . . . . 165 . . . . . . 1858 442 1135 22 . 1617 105 . 266 10508 3797 3188 Ramming 153 | . . . . . . . . . . . . . . . . . . 25 86 . 42 . . Kinetic 5255 | . . 422 . . 1135 237 1700 . . 210 1187 . 226 . . . . . . . 138 . . Thermal 11197 | 10 590 577 . . 741 179 584 . 632 34 399 . . . . . 86 . 54 831 6480 . . Explosive 41723 | . . 696 . . . 285 . . 203 . 323 . . . 3489 . 323 927 . . 35142 96 239 Electromagnetic 162 | . . . . . . . 37 . 125 . . . . . . . . . . . . . . Impact 10982 | . . . . . 165 . . . . . . 1858 442 1135 22 . . . . . 3145 3563 652 Slashing 8266 | . . . . . . . . . 63 . . . . . . . . . . 266 6326 668 943 Piercing 7021 | . . . . . . . . . . . . . . . . . 1617 105 . . 2436 973 1890 Highest Corruption 39 | . . 5 . . 10 1 1 1 . . . 3 8 39 23 2 30 34 . 12 18 22 8 Average Corruption 9 | . . 3 . . 7 1 1 1 . . . 2 6 28 5 2 22 31 . 12 6 19 6 Corruption Purged . | . . . . . . . . . . . . . . . . . . . . . . . . Corruption Blocked . | . . . . . . . . . . . . . . . . . . . . . . . . Effects 232 | . . 2 . . 11 1 8 3 . . . 1 17 22 4 . 12 19 . 1 91 16 24 Message Errors 49 | . . . . . 2 . 2 . . . . . 3 7 . . . 2 . . 28 2 3 Matter Fused 66 | . . 2 . . 4 . 1 1 . . . 1 6 5 1 . 4 5 . . 20 6 10 Heat Flow Errors 25 | . . . . . 1 . 3 1 . . . . 2 3 1 . . 1 . 1 9 1 2 Energy Discharges 32 | . . . . . 3 . . . . . . . 2 1 2 . 1 3 . . 11 2 7 Parts Rejected 3 | . . . . . . . . . . . . . . . . . 2 . . . 1 . . Parts Fused 2 | . . . . . . . . . . . . . 1 . . . 1 . . . . . . Data Loss (minor) 30 | . . . . . 1 1 . 1 . . . . 1 4 . . 3 1 . . 14 2 2 Data Loss (major) 10 | . . . . . . . 1 . . . . . 1 1 . . . 1 . . 5 1 . Misfires 6 | . . . . . . . 1 . . . . . 1 . . . 1 3 . . . . . Alerts 1 | . . . . . . . . . . . . . . . . . . . . . . 1 . Misdirections 7 | . . . . . . . . . . . . . . 1 . . . 2 . . 3 1 . Weapon Failures 1 | . . . . . . . . . . . . . . . . . . 1 . . . . . Overload Shots 3 | . . . . . . . . 3 . . . . . . . . . . . . . . . Overflow Damage 8068 | . . 60 . . 191 18 92 . 19 . 26 719 258 415 53 . 258 19 . 10 4388 1216 326 Projectiles 596 | . . . . . . . . . . . . . . . . . . . . . 596 . . Explosions 2230 | . . 60 . . 103 18 92 . 19 . 26 . . . 53 . 63 19 . 10 1492 177 98 Melee 5242 | . . . . . 88 . . . . . . 719 258 415 . . 195 . . . 2300 1039 228 Knockbacks 52 | . . 2 . . 7 1 8 . . . . 7 . 4 . . . . . . 13 8 2 Impact 28 | . . . . . 1 . . . . . . 6 . 4 . . . . . . 9 6 2 Kinetic 18 | . . 2 . . 6 1 8 . . . . . . . . . . . . . 1 . . Secondary 6 | . . . . . . . . . . . . 1 . . . . . . . . 3 2 . Self-Inflicted Damage 1771 | . . 23 . . 140 . 305 . . . 48 . . . . . . 85 43 22 1011 . 94 Shots 30 | . . 1 . . 3 . 8 . . . 1 . . . . . . 2 . 1 13 . 1 Rammed 3 | . . . . . . . . . . . . . . . . . . 1 1 . 1 . . Targets Rammed 3 | . . . . . . . . . . . . . . . . . . 1 1 . 1 . . Kicked . | . . . . . . . . . . . . . . . . . . . . . . . . Crushed . | . . . . . . . . . . . . . . . . . . . . . . . . Highest Temperature 473 | . 418 248 . . 69 260 426 219 120 . 33 . 158 244 59 38 188 193 . 239 473 248 369 Average Temperature 86 | . 116 37 . . 13 104 136 56 34 . 16 . 92 106 20 14 60 61 . 87 91 137 132 Received Heat Transfer 3143 | . 162 168 . . 27 45 396 . 126 27 393 138 9 219 231 . 39 53 9 90 843 33 135 Effects 3 | . 1 . . . . . 1 . . . . . . . . . . . . . 1 . . Shutdowns 1 | . . . . . . . 1 . . . . . . . . . . . . . . . . Energy Bleed 2 | . 1 . . . . . . . . . . . . . . . . . . . 1 . . Siege Activations . | . . . . . . . . . . . . . . . . . . . . . . . . Martial Activations . | . . . . . . . . . . . . . . . . . . . . . . . . Shielding Activations . | . . . . . . . . . . . . . . . . . . . . . . . . Robots Disrupted . | . . . . . . . . . . . . . . . . . . . . . . . . Combat Hostiles . | . . . . . . . . . . . . . . . . . . . . . . . . Robots Corrupted 36 | . . . . . 1 . . . . . . 7 3 7 . . . . . . 10 5 3 Combat Hostiles 31 | . . . . . . . . . . . . 6 3 7 . . . . . . 9 3 3 Parts Fried 47 | . . . . . 2 . . . . . . 8 1 4 . . . . . . 16 4 12 Impact Corruptions 110 | . . . . . 2 . . . . . . 24 9 17 . . . . . . 31 19 8 Robots Melted 3 | . . . . . . . . . . . . . . . . . . . . . 3 . . Combat Hostiles 3 | . . . . . . . . . . . . . . . . . . . . . 3 . . Parts Melted 13 | . 1 . . . . 1 . . . . 1 . . . . . . . . 2 8 . . Heat Transferred 6819 | 25 730 720 . . 557 333 791 . 111 37 883 . . . . . 74 . 87 1146 1325 . . Parts Sabotaged . | . . . . . . . . . . . . . . . . . . . . . . . . Parts Stolen . | . . . . . . . . . . . . . . . . . . . . . . . . Parts Stripped 47 | . . . . . . . . . . . . . . . . . . . . . 47 . . Power Chain Reactions 11 | . . . . . . . . . . . . . . . . . . . . . 11 . . Alert | -11 -10 -10 -8 -8 -6 -6 -6 -6 -6 -5 -5 -4 -4 -4 -4 -3 -3 -3 -2 -2 -2 -1 -1 ------- Run | Yrd Mat Sub Rec Scr Fac Low Low Zio Dee Pro Fac Fac Upp Upp War Pro Res Tes Res Qua Frg Acc Com Maximum Alert Level 5 | . . . . . 1 . . . . . 3 1 . . . . 1 2 2 2 5 5 5 Low Security (%) 25 | 100 100 . 100 . 44 . . . . . . . . . . . 65 80 . . . . . Level 1 17 | . . . . . 55 . . . . . 2 100 . . . . 34 18 78 78 4 . . Level 2 2 | . . . . . . . . . . . 63 . . . . . . 1 21 21 . . . Level 3 2 | . . . . . . . . . . . 34 . . . . . . . . . 3 . . Level 4 2 | . . . . . . . . . . . . . . . . . . . . . 6 . . Level 5 41 | . . . . . . . . . . . . . . . . . . . . . 84 15 90 High Security 6 | . . . . . . . . . . . . . . . . . . . . . . 84 9 Max Security . | . . . . . . . . . . . . . . . . . . . . . . . . Peak Influence 8680 | 5 85 . . . 311 . . . . . 788 331 . . . . 244 500 433 478 8680 6278 4601 Initial 5208 | . 3 . . . . . . . . . 346 331 . . . . . 132 281 237 198 5208 4017 Average 2365 | . 19 . . . 168 . . . . . 578 259 . . . . 154 156 301 361 4155 5677 4335 Influence Increases 18216 | 5 289 408 . . 557 200 455 . . 149 1022 215 190 416 325 . 448 558 192 487 10052 1180 1068 Destroy 0b10 Robot/C 7260 | . 200 360 . . 240 180 360 . . 80 180 140 160 300 280 . 60 140 . 80 3740 400 360 Destroy 0b10 Robot/NC 440 | 5 20 . . . 30 . . . . 10 10 10 . . . . 65 5 5 10 220 45 5 Destroy Leader 954 | . 54 . . . 64 20 20 . . 10 40 50 10 30 . . 16 20 . 2 460 96 62 Allied During Kill 608 | . . 3 . . . . . . . 49 . . 20 41 . . . . . . 425 34 36 Successful Hack 69 | . . . . . . . . . . . . . . . . . 26 27 12 . . . 4 Disable Machine 1095 | . . . . . 105 . . . . . 75 . . . . . . 75 . 90 720 15 15 Anti-Garrison Action 150 | . . . . . . . . . . . . . . . . . . . . . 150 . . Destroy Structure 2445 | . . . . . 118 . . . . . 192 . . . . . 86 96 6 80 1568 188 111 Advance Influence 300 | . . . . . . . . . . . 300 . . . . . . . . . . . . Partial Spotted 405 | . . . . . . . . . . . . . . . . . 75 . 15 . 165 60 90 Lose Combat Pursuer 2700 | . 15 45 . . . . 75 . . . 45 15 . 45 45 . 120 195 . 225 1470 120 285 Active Sensor Use 200 | . . . . . . . . . . . . . . . . . . . . . . 100 100 Miscellaneous 1590 | . . . . . . . . . . . 180 . . . . . . . 154 . 1134 122 . Influence Decreases 13711 | . 294 408 . . 368 301 317 226 . 74 419 647 400 357 206 214 212 294 269 556 1726 3582 2841 Entered New Map 7499 | . 2 . . . . 71 17 226 . . 29 347 92 8 95 214 . 104 219 186 156 3472 2261 Time Decay 4123 | . 292 350 . . 338 230 250 . . 74 170 270 258 228 81 . 212 160 50 190 770 60 140 Search Patrol Dispatched 100 | . . . . . . . . . . . . . . . . . . . . 100 . . . Lost Part 1081 | . . 30 . . 30 . 50 . . . 180 30 30 61 30 . . 30 . . 340 10 260 Lost Ally 908 | . . 28 . . . . . . . . 40 . 20 60 . . . . . 80 460 40 180 Squads Dispatched 85 | . 2 . . . 5 . . . . . 4 5 . . . . 5 4 . 5 16 27 12 Investigation 19 | . 1 . . . 2 . . . . . . 4 . . . . 2 1 . . 7 1 1 Extermination 10 | . . . . . 2 . . . . . . 1 . . . . 2 1 . 2 1 . 1 Reinforcement 28 | . 1 . . . 1 . . . . . 2 . . . . . 1 2 . 3 8 4 6 Assault 28 | . . . . . . . . . . . 2 . . . . . . . . . . 22 4 Garrison . | . . . . . . . . . . . . . . . . . . . . . . . . Intercept . | . . . . . . . . . . . . . . . . . . . . . . . . Searches Triggered 1 | . . . . . . . . . . . . . . . . . . . . 1 . . . Construction Impeded 1 | . . . . . . . . . . . . . . . . . . 1 . . . . . Haulers Reinforced 3 | . . . . . 1 . . . . . . . . . . . 1 . . . . 1 . Active Scanning Responses 2 | . . . . . . . . . . . . . . . . . . . . . . 1 1 Cargo Convoy Interrupts . | . . . . . . . . . . . . . . . . . . . . . . . . Stealth | -11 -10 -10 -8 -8 -6 -6 -6 -6 -6 -5 -5 -4 -4 -4 -4 -3 -3 -3 -2 -2 -2 -1 -1 --------- Run | Yrd Mat Sub Rec Scr Fac Low Low Zio Dee Pro Fac Fac Upp Upp War Pro Res Tes Res Qua Frg Acc Com Distress Signals 52 | . 3 . . . . . . . . . . . . . 2 . . 2 . 1 13 4 27 Communications Jammed 72 | . . . . . . . . . . . 2 . . . . . 4 17 . 11 . . 38 Distress Signals 72 | . . . . . . . . . . . 2 . . . . . 4 17 . 11 . . 38 Times Spotted 784 | . 18 26 . . 17 5 23 . 10 6 23 14 7 19 33 2 21 32 6 31 377 37 77 Peak Tracking Total 19 | . 3 6 . . 6 2 13 . 3 4 10 5 5 7 9 2 9 8 5 11 19 7 17 Tactical Retreats 86 | . 1 1 . . . . 5 . . . 3 1 . 2 3 . 4 4 . 5 46 3 8 Traps | -11 -10 -10 -8 -8 -6 -6 -6 -6 -6 -5 -5 -4 -4 -4 -4 -3 -3 -3 -2 -2 -2 -1 -1 ------- Run | Yrd Mat Sub Rec Scr Fac Low Low Zio Dee Pro Fac Fac Upp Upp War Pro Res Tes Res Qua Frg Acc Com Traps Triggered 29 | . 4 2 . . 4 . . . . . . . . . . . . . 2 1 12 2 2 Indirectly . | . . . . . . . . . . . . . . . . . . . . . . . . Trap Hack Attempts . | . . . . . . . . . . . . . . . . . . . . . . . . Triggered . | . . . . . . . . . . . . . . . . . . . . . . . . Disarmed . | . . . . . . . . . . . . . . . . . . . . . . . . Reprogrammed . | . . . . . . . . . . . . . . . . . . . . . . . . Reused . | . . . . . . . . . . . . . . . . . . . . . . . . Traps Extracted . | . . . . . . . . . . . . . . . . . . . . . . . . Installed 1 | . . . . . . . . . 1 . . . . . . . . . . . . . . Triggered . | . . . . . . . . . . . . . . . . . . . . . . . . Most Traps Carried 3 | . . . . . 3 1 1 1 1 . . . . . . . . . . . . . . Machines | -11 -10 -10 -8 -8 -6 -6 -6 -6 -6 -5 -5 -4 -4 -4 -4 -3 -3 -3 -2 -2 -2 -1 -1 ---------- Run | Yrd Mat Sub Rec Scr Fac Low Low Zio Dee Pro Fac Fac Upp Upp War Pro Res Tes Res Qua Frg Acc Com Machines Disabled 105 | . . 5 . . 7 . 8 3 3 . 5 . . . 1 . . 6 . 6 59 1 1 Max in Single Turn 6 | . . 3 . . 2 . 6 1 1 . 2 . . . 1 . . 1 . 1 3 1 . Garrison Access 1 | . . . . . . . . . . . . . . . . . . . . . 1 . . Energy Cycler 1 | . . . . . . . . . . . . . . . . . . . . . . 1 . Machines Repaired . | . . . . . . . . . . . . . . . . . . . . . . . . Machines Dismantled . | . . . . . . . . . . . . . . . . . . . . . . . . Machines Sabotaged . | . . . . . . . . . . . . . . . . . . . . . . . . Overloaded Fab Kills . | . . . . . . . . . . . . . . . . . . . . . . . . Hacking | -11 -10 -10 -8 -8 -6 -6 -6 -6 -6 -5 -5 -4 -4 -4 -4 -3 -3 -3 -2 -2 -2 -1 -1 --------- Run | Yrd Mat Sub Rec Scr Fac Low Low Zio Dee Pro Fac Fac Upp Upp War Pro Res Tes Res Qua Frg Acc Com Machines Accessed 33 | . . . . 2 2 . 1 . . . 1 5 1 . 1 . 6 4 2 1 4 2 1 Terminals 15 | . . . . . . . . . . . 1 1 . . . . 3 3 2 1 1 2 1 Fabricators 2 | . . . . . . . . . . . . 1 . . . . 1 . . . . . . Repair Stations 1 | . . . . . . . . . . . . 1 . . . . . . . . . . . Recycling Units 9 | . . . . . 2 . . . . . . 2 . . . . 2 . . . 3 . . Scanalyzers . | . . . . . . . . . . . . . . . . . . . . . . . . Garrison Access 1 | . . . . . . . . . . . . . . . . . . 1 . . . . . Total Hacks 60 | . . . . 10 5 . 1 . . . 1 9 1 . 1 . 9 9 2 2 6 2 2 Successful 30 | . . . . 10 2 . 1 . . . . 3 1 . 1 . 5 2 1 1 2 . 1 Failed 30 | . . . . . 3 . . . . . 1 6 . . . . 4 7 1 1 4 2 1 Catastrophic 6 | . . . . . . . . . . . 1 3 . . . . . 1 1 . . . . Database Lockouts . | . . . . . . . . . . . . . . . . . . . . . . . . Manual 22 | . 1 . . . 5 . . 1 . . . 6 . . . . 3 . 1 . 5 . . Terminals 25 | . . . . . . . . . . . 1 4 . . . . 5 6 2 2 1 2 2 Fabricators 3 | . . . . . . . . . . . . 1 . . . . 2 . . . . . . Repair Stations 2 | . . . . . . . . . . . . 2 . . . . . . . . . . . Recycling Units 14 | . . . . . 5 . . . . . . 2 . . . . 2 . . . 5 . . Scanalyzers . | . . . . . . . . . . . . . . . . . . . . . . . . Garrison Access 3 | . . . . . . . . . . . . . . . . . . 3 . . . . . Terminal Hacks 22 | . . . . 10 . . 1 . . . . . 1 . 1 . 3 2 1 1 1 . 1 Record 4 | . . . . 4 . . . . . . . . . . . . . . . . . . . Robot Analysis 6 | . . . . 6 . . . . . . . . . . . . . . . . . . . Open Door 5 | . . . . . . . 1 . . . . . 1 . 1 . . 1 . . . . 1 Branch Access Points 2 | . . . . . . . . . . . . . . . . . 1 . 1 . . . . Alert Level 2 | . . . . . . . . . . . . . . . . . 1 . . 1 . . . Zone Layout 2 | . . . . . . . . . . . . . . . . . 1 1 . . . . . Proto ID Catalog 1 | . . . . . . . . . . . . . . . . . . . . . 1 . . Fabricator Hacks 1 | . . . . . . . . . . . . 1 . . . . . . . . . . . Network Status 1 | . . . . . . . . . . . . 1 . . . . . . . . . . . Repair Station Hacks . | . . . . . . . . . . . . . . . . . . . . . . . . Recycling Unit Hacks . | . . . . . . . . . . . . . . . . . . . . . . . . Scanalyzer . | . . . . . . . . . . . . . . . . . . . . . . . . Garrison Access Hacks . | . . . . . . . . . . . . . . . . . . . . . . . . Unauthorized Hacks 7 | . . . . . 2 . . . . . . 2 . . . . 2 . . . 1 . . Terminals . | . . . . . . . . . . . . . . . . . . . . . . . . Fabricators . | . . . . . . . . . . . . . . . . . . . . . . . . Repair Stations . | . . . . . . . . . . . . . . . . . . . . . . . . Recycling Units 7 | . . . . . 2 . . . . . . 2 . . . . 2 . . . 1 . . Fedlink 7 | . . . . . 2 . . . . . . 2 . . . . 2 . . . 1 . . Scanalyzers . | . . . . . . . . . . . . . . . . . . . . . . . . Garrison Access . | . . . . . . . . . . . . . . . . . . . . . . . . Data Cores Recovered 2 | . . . . . . . . . . . . . . . . . 2 . . . . . . Used 1 | . . . . . . . . . . . . . . . . . 1 . . . . . . Hacking Detections 17 | . . . . . 1 . . . . . 1 2 . . . . 2 4 1 1 2 2 1 Full Trace Events 4 | . . . . . . . . . . . . 2 . . . . . 1 . . 1 . . Feedback Events . | . . . . . . . . . . . . . . . . . . . . . . . . Feedback Blocked . | . . . . . . . . . . . . . . . . . . . . . . . . Robot Schematics Acquired 2 | . . . . . . . . . . . . . . . . . . . . . 2 . . Robots Built . | . . . . . . . . . . . . . . . . . . . . . . . . Authchips . | . . . . . . . . . . . . . . . . . . . . . . . . Time . | . . . . . . . . . . . . . . . . . . . . . . . . Total Robot Build Rating . | . . . . . . . . . . . . . . . . . . . . . . . . Part Schematics Acquired 4 | . . . . . . . . . . . . . . . . . . 1 . . 3 . . Parts Built . | . . . . . . . . . . . . . . . . . . . . . . . . Authchips . | . . . . . . . . . . . . . . . . . . . . . . . . Time . | . . . . . . . . . . . . . . . . . . . . . . . . Total Part Build Rating . | . . . . . . . . . . . . . . . . . . . . . . . . Part Studies Acquired . | . . . . . . . . . . . . . . . . . . . . . . . . Parts Repaired . | . . . . . . . . . . . . . . . . . . . . . . . . Time . | . . . . . . . . . . . . . . . . . . . . . . . . Parts Recycled . | . . . . . . . . . . . . . . . . . . . . . . . . Recycled Matter . | . . . . . . . . . . . . . . . . . . . . . . . . Retrieved Matter . | . . . . . . . . . . . . . . . . . . . . . . . . Retrieved Components . | . . . . . . . . . . . . . . . . . . . . . . . . Parts Scanalyzed . | . . . . . . . . . . . . . . . . . . . . . . . . Part Schematics Acquired . | . . . . . . . . . . . . . . . . . . . . . . . . Parts Damaged . | . . . . . . . . . . . . . . . . . . . . . . . . Bothacking | -11 -10 -10 -8 -8 -6 -6 -6 -6 -6 -5 -5 -4 -4 -4 -4 -3 -3 -3 -2 -2 -2 -1 -1 ------------ Run | Yrd Mat Sub Rec Scr Fac Low Low Zio Dee Pro Fac Fac Upp Upp War Pro Res Tes Res Qua Frg Acc Com Used RIF Installer . | . . . . . . . . . . . . . . . . . . . . . . . . Robots Hacked . | . . . . . . . . . . . . . . . . . . . . . . . . Non-combat . | . . . . . . . . . . . . . . . . . . . . . . . . Combat . | . . . . . . . . . . . . . . . . . . . . . . . . Robot Hacks Applied . | . . . . . . . . . . . . . . . . . . . . . . . . Relay Couplers Released 5 | . . . . . 3 . . . . . . . . . . . . . . . 2 . . Machine Destruction 2 | . . . . . . . . . . . . . . . . . . . . . 2 . . Programmers 3 | . . . . . 3 . . . . . . . . . . . . . . . . . . Fabnet Peak Effective % . | . . . . . . . . . . . . . . . . . . . . . . . . Robots Rewired . | . . . . . . . . . . . . . . . . . . . . . . . . Allies Hacked 3 | . . . . . . . . . . . . . . . . . . . . . 1 . 2 Hacks Repelled . | . . . . . . . . . . . . . . . . . . . . . . . . Allies | -11 -10 -10 -8 -8 -6 -6 -6 -6 -6 -5 -5 -4 -4 -4 -4 -3 -3 -3 -2 -2 -2 -1 -1 -------- Run | Yrd Mat Sub Rec Scr Fac Low Low Zio Dee Pro Fac Fac Upp Upp War Pro Res Tes Res Qua Frg Acc Com Total Allies 49 | . . 3 . . . . . 2 . . . . 5 . . . . . . 4 24 3 8 Largest Group 8 | . . 3 . . . . . 2 2 2 2 . 5 3 . . . . . 3 8 2 3 Highest-Rated Group 635 | . . 24 . . . . . 192 192 192 192 . 235 141 . . . . . 90 635 178 431 Highest-Rated Ally 212 | . . 8 . . . . . 96 96 96 96 . 47 51 . . . . . 30 120 89 212 Initial UFD Resources 77 | . . . . . 23 37 37 37 37 39 39 43 57 57 57 61 61 75 77 77 77 . . Total Orders 8 | . . . . . . . . . . . . . . . . . . . . . 5 . 3 RETURN 8 | . . . . . . . . . . . . . . . . . . . . . 5 . 3 Ally Attacks 477 | . . 10 . . . . . . 46 19 7 . 19 14 . . . . . 14 191 38 119 Total Damage 19788 | . . 77 . . . . . . 1166 375 92 . 372 204 . . . . . 150 8504 878 7970 Kills 60 | . . 1 . . . . . . 11 4 . . 3 3 . . . . . . 29 6 3 Allies Corrupted . | . . . . . . . . . . . . . . . . . . . . . . . . Allies Melted 6 | . . . . . . . . . . . . . . . 2 . . . . . 4 . . X0-1V1 Amusement Gains 739 | . 20 1 8 54 65 4 38 20 6 6 71 20 10 30 40 . . . . 20 215 70 41 Good Acts 326 | . . 19 4 . 10 3 4 . . 3 4 6 3 4 15 4 7 9 2 11 179 14 25 Bad Acts 181 | . . 19 3 . . . 1 . . 1 5 1 2 6 1 . 5 3 5 7 92 19 11 Intel | -11 -10 -10 -8 -8 -6 -6 -6 -6 -6 -5 -5 -4 -4 -4 -4 -3 -3 -3 -2 -2 -2 -1 -1 ------- Run | Yrd Mat Sub Rec Scr Fac Low Low Zio Dee Pro Fac Fac Upp Upp War Pro Res Tes Res Qua Frg Acc Com Active Infowar (turns) 8275 | . . . . . 484 . 546 1737 219 . 71 84 . . 405 . 482 325 104 385 2191 877 365 Optics 2259 | . . . . . . . . 1368 . . . . . . . . . 127 104 385 275 . . Sensors 2790 | . . . . . 478 . . 1153 219 . 1 . . . . . 72 269 77 385 136 . . A.S.S. 863 | . . . . . . . . . . . . . . . . . . . . . 1 843 19 Cloaking 2909 | . . . . . . . . . . . . . . . . . . . . . 1913 877 119 Jamming 3597 | . . . . . 396 . 546 . . . 70 84 . . 405 . 482 323 104 385 122 349 331 Robot Analysis Total 6 | . . . . 6 . . . . . . . . . . . . . . . . . . . Derelict Logs Recovered 5 | . . 1 . . . 1 1 . . 1 . . . 1 . . . . . . . . . Drone Launches 32 | . . . . . . 3 . . . . . . . . . . . . . . 12 . 17 Drone Recoveries 25 | . . . . . . . 3 . . . . . . . . . . . . . 9 . 13 Exploration | -11 -10 -10 -8 -8 -6 -6 -6 -6 -6 -5 -5 -4 -4 -4 -4 -3 -3 -3 -2 -2 -2 -1 -1 ------------- Run | Yrd Mat Sub Rec Scr Fac Low Low Zio Dee Pro Fac Fac Upp Upp War Pro Res Tes Res Qua Frg Acc Com Turns Passed 24074 | 107 1166 2360 679 2419 1293 495 1147 2279 592 325 356 590 560 486 1254 77 482 332 104 385 4712 877 997 Spaces Moved 22556 | 63 500 1011 272 694 565 206 441 934 580 386 317 281 432 345 1126 351 792 618 204 801 8581 1925 1131 Core 135 | 7 . . . . . . . . . . 19 . . . . . . . . . . . 109 Treads 4713 | 56 500 1011 272 515 565 206 441 934 149 . . . . . . . . . . . . . 64 Legs 647 | . . . . 126 . . . . . . 10 281 56 174 . . . . . . . . . Wheels 1690 | . . . . 53 . . . . . . 39 . 376 171 1051 . . . . . . . . Hover 15371 | . . . . . . . . . 431 386 249 . . . 75 351 792 618 204 801 8581 1925 958 Flight . | . . . . . . . . . . . . . . . . . . . . . . . . Fastest Speed 18 | 50 160 160 160 140 160 160 160 163 48 48 48 90 70 80 20 18 33 31 32 28 20 29 23 Average Speed 83 | 147 160 210 248 346 200 180 243 240 78 77 62 144 93 101 79 20 36 36 32 35 33 33 44 Slowest Speed 670 | 160 240 360 260 630 253 250 260 255 260 118 140 270 190 260 670 39 124 113 33 37 137 36 270 Overloaded Moves 119 | . . . . . . . . . . . . . . . . 64 . 4 . . . . 51 Propulsion Burnouts . | . . . . . . . . . . . . . . . . . . . . . . . . Robots Hopped . | . . . . . . . . . . . . . . . . . . . . . . . . Potential Cave-ins 48 | . . . . . . . . . . . . . . . . . 4 . . 5 36 3 . Cave-ins Triggered 3 | . . . . . . . . . . . . . . . . . . . . . 3 . . Exploration Rate (%) 49 | 4 88 61 51 45 9 37 69 89 63 51 9 6 52 42 91 47 29 70 12 84 91 39 44 Regions Visited 23 Branch Regions 16 Pre-discovered Areas 4 | . . 1 . . 1 . . 1 . . . . . 1 . . . . . . . . . Known Exits Taken 13 | . . . 1 1 1 . . . . 1 . . 1 . 1 1 1 1 1 1 1 1 . Unknown Exits Taken 10 | 1 1 1 . . . 1 1 1 1 . 1 1 . 1 . . . . . . . . . Scrap Searched 23 | . . 6 . 6 . 2 5 1 . . . . 2 . . 1 . . . . . . . Spaces Dug 260 | . . . . . 4 . . . . . . . . . . . 21 10 1 19 137 56 12 Terrain Destroyed 1547 | . . 33 . . 169 48 44 . 28 19 101 . 11 . 166 . 51 55 1 25 693 71 32 Melee 65 | . . . . . . . . . . . . . . . . . 8 4 . 3 14 30 6 Projectile 339 | . . . . . 17 3 1 . 3 1 4 . 11 . . . 29 12 1 22 207 12 16 AOE 1143 | . . 33 . . 152 45 43 . 25 18 97 . . . 166 . 14 39 . . 472 29 10 Terrain Rammed . | . . . . . . . . . . . . . . . . . . . . . . . . Walls Destroyed . | . . . . . . . . . . . . . . . . . . . . . . . . Machines Disabled . | . . . . . . . . . . . . . . . . . . . . . . . . Actions | -11 -10 -10 -8 -8 -6 -6 -6 -6 -6 -5 -5 -4 -4 -4 -4 -3 -3 -3 -2 -2 -2 -1 -1 --------- Run | Yrd Mat Sub Rec Scr Fac Low Low Zio Dee Pro Fac Fac Upp Upp War Pro Res Tes Res Qua Frg Acc Com Total 26584 | 72 802 1153 279 706 666 315 488 961 688 408 416 384 550 408 1463 357 909 693 239 863 10086 2088 1590 Wait 1712 | . 249 18 . . 32 92 3 6 52 8 28 55 65 15 242 . . . . . 485 51 311 Move 22529 | 62 499 1010 271 693 564 205 440 933 579 385 316 280 431 344 1125 350 791 617 204 800 8576 1924 1130 Hop . | . . . . . . . . . . . . . . . . . . . . . . . . Pick Up 279 | 3 11 14 3 4 9 4 1 1 1 2 6 4 4 4 11 2 16 7 6 3 139 11 13 Fast Attach 247 | 6 5 6 1 3 12 1 3 6 14 . 6 11 10 10 28 1 9 16 2 9 76 2 10 Attach 179 | . 2 7 . 1 11 1 5 2 5 2 9 . 3 2 4 . 6 6 5 6 68 7 27 Detach 64 | . . . . . 2 . 1 3 5 1 1 . 1 . . . 3 3 3 2 27 1 11 Swap 147 | . 3 12 . 1 . . 7 2 2 1 . 1 3 3 2 . 5 1 2 2 83 8 9 Drop 362 | . 3 14 4 4 7 5 3 5 12 3 8 2 8 4 39 4 19 17 6 12 165 9 9 Fire 533 | 1 30 70 . . 27 7 25 3 17 5 42 . 12 . 11 . 31 17 3 20 194 6 12 Melee 411 | . . . . . 2 . . . . 1 . 31 13 26 1 . 29 8 . 9 164 69 58 Ram 2 | . . . . . . . . . . . . . . . . . . 1 . . 1 . . Kick . | . . . . . . . . . . . . . . . . . . . . . . . . Crush . | . . . . . . . . . . . . . . . . . . . . . . . . Escape Stasis 25 | . . . . . . . . . . . . . . . . . . . 8 . 17 . . Rewire 1 | . . . . . . . . . . . . . . . . . . . . . 1 . . Trap 1 | . . . . . . . . . 1 . . . . . . . . . . . . . . Miscellaneous 92 | . . 2 . . . . . . . . . . . . . . . . . . 90 . . Route ------- -11/Scrapyard -10/Materials (discovered 5 exits: [*Mat x3] / [*Min] / [*Sub]) -10/Subcaves (discovered 3 exits: Mat / [*Rec] / *Scr) -8/Recycling (discovered 2 exits: Fac / *Scr) -8/Scraptown -6/Factory (discovered 3 exits: *Fac / *Low / Ext) -6/Lower Caves -6/Lower Caves -6/Zion -6/Deep Caves -5/Proximity Caves -5/Factory (discovered 2 exits: *Fac x2) -4/Factory (discovered 2 exits: *Upp / Arm) -4/Upper Caves -4/Upper Caves (discovered 2 exits: Res / *War) -4/Warlord -3/Proximity Caves -3/Research (discovered 3 exits: Res / *Tes x2) -3/Testing -2/Research (discovered 2 exits: *Qua x2) -2/Quarantine (discovered 2 exits: *Sec / *Frg) -2/Protoforge -1/Access -1/Command (discovered 3 exits: [*Sur x2] / Ac0) To Fleet Rendezvous History --------- Turn | Location | Event 6 | -11/Scrapyard | Discovered new exit (range 14) 108 | -11/Scrapyard | Entered Materials 308 | -10/Materials | Discovered new exit (range 9) 318 | -10/Materials | Build established: Mutant 639 | -10/Materials | Discovered new exit (range 8) 812 | -10/Materials | Discovered new exit (range 5) 937 | -10/Materials | Discovered new exit (range 8) 1093 | -10/Materials | Discovered new exit (range 9) 1265 | -10/Materials | Prayed at D.C.S.S. Altar Unit 1274 | -10/Materials | Entered Subcaves 1275 | -10/Subcaves | Approached by a straggling Scientist 1286 | -10/Subcaves | Learned Materials trap positions 1348 | -10/Subcaves | A swath of the cavern ceiling suddenly collapsed 1466 | -10/Subcaves | Discovered new exit (range 13) 1474 | -10/Subcaves | X0-1V1 sent allied G-34 Mercenary (x3) 1593 | -10/Subcaves | Heat dissipation permanently improved by X0-1V1 (+20; -100 max core) 1767 | -10/Subcaves | X0-1V1 rewrote G-34 Mercenary IFF filter 1810 | -10/Subcaves | X0-1V1 mutated your Weapon slot to Utility slot 1815 | -10/Subcaves | X0-1V1 sent hostile S-10 Pest (x5) 1863 | -10/Subcaves | Shifting Twisted Machinery released Barrage Gun 1880 | -10/Subcaves | Shifting Twisted Machinery released Sub. Beam Cannon 1961 | -10/Subcaves | X0-1V1 sent hostile G-34 Mercenary (x5) 1987 | -10/Subcaves | Destroyed 8 combat bots 2177 | -10/Subcaves | Core integrity fell below 50% 2314 | -10/Subcaves | Learned location of Zion (-6) 2314 | -10/Subcaves | Met a Zionite searching for "candidates" 2331 | -10/Subcaves | Shifting Twisted Machinery released Sub. Shrapnel Launcher 2344 | -10/Subcaves | Shifting Twisted Machinery released Sub. Power Source 2582 | -10/Subcaves | Weapon slot count permanently improved by X0-1V1 (+1) 2589 | -10/Subcaves | Core integrity permanently improved by X0-1V1 (+200) 2599 | -10/Subcaves | Identified exit to Materials 2599 | -10/Subcaves | X0-1V1 revealed exit location to -8/Materials 2618 | -10/Subcaves | X0-1V1 activates XOMVISION 2641 | -10/Subcaves | X0-1V1 sent hostile S-10 Pest (x3) 2671 | -10/Subcaves | Core integrity restored by X0-1V1 (+52) 2690 | -10/Subcaves | X0-1V1 mutated your Propulsion slot to Power slot 2703 | -10/Subcaves | X0-1V1 sent you into danger 2881 | -10/Subcaves | Visited 4L-MR0's lab 2910 | -10/Subcaves | Found Prototype Device 2917 | -10/Subcaves | Found Prototype Protection 3577 | -10/Subcaves | Identified Sfc. Transmogrifier 3634 | -10/Subcaves | Entered Recycling 3637 | -8/Recycling | X0-1V1 vaporized surrounding terrain (radius 15) 3640 | -8/Recycling | Identified exit to Factory 3640 | -8/Recycling | X0-1V1 revealed exit location to -6/Factory 4144 | -8/Recycling | Identified exit to Scraptown 4144 | -8/Recycling | X0-1V1 revealed exit location to -8/Scraptown 4256 | -8/Recycling | Scanned before Scraplab entrance 4292 | -8/Recycling | Entered Scraplab 4313 | -8/Recycling | Entered Scraptown 4474 | -8/Scraptown | Visited Bundlers 4613 | -8/Scraptown | Visited UFD Registry 4613 | -8/Scraptown | Registered with UFD as "Pulsedome" 4665 | -8/Scraptown | Visited Research Penetration Think Tank 4719 | -8/Scraptown | Visited Analyses Database 4793 | -8/Scraptown | Visited Junk Repository 4825 | -8/Scraptown | Visited DA-N13 Charitable Foundation 4835 | -8/Scraptown | Found DCF Scrap (28 items) 4984 | -8/Scraptown | Visited Scrapoid Pod Storage 5004 | -8/Scraptown | Found Scrapoid Pod 5054 | -8/Scraptown | Visited Science Guys 5124 | -8/Scraptown | Visited Abandonware Association 5165 | -8/Scraptown | Learned abandonware demo "REBOOT5.EXE" 5165 | -8/Scraptown | Learned abandonware demo "REVENGE.EXE" 5263 | -8/Scraptown | Visited Curators Association 5333 | -8/Scraptown | Visited Chapter 10 6653 | -8/Scraptown | Met Optimus 6653 | -8/Scraptown | Accepted into 0bPrime 6723 | -8/Scraptown | Discovered exit to Factory (range 5) 6732 | -8/Scraptown | Entered Factory 6732 | -6/Factory | Evolved 8 slots: Propulsion x3, Utility x4, Weapon x1 6779 | -6/Factory | Discovered new exit (range 7) 6853 | -6/Factory | Identified exit to Factory 6964 | -6/Factory | Identified exit to Extension 6964 | -6/Factory | X0-1V1 revealed exit location to -6/Extension 7000 | -6/Factory | Loaded intel: 8 recycling unit locations 7009 | -6/Factory | Discovered new exit (range 5) 7016 | -6/Factory | Identified exit to Lower Caves 7034 | -6/Factory | Build established: Skirmisher 7212 | -6/Factory | Assembled infested ambush trap array 7219 | -6/Factory | Weapon slot count temporarily expanded by X0-1V1 (+4) 7277 | -6/Factory | Lost 3 parts (1p2u) 7388 | -6/Factory | Learned location of Protoforge (-2) 7578 | -6/Factory | System corruption reached 10% 7803 | -6/Factory | Build established: Scavenger-Executioner 8025 | -6/Factory | Entered Lower Caves 8105 | -6/Lower Caves | X0-1V1 downgraded hostiles (x1) 8143 | -6/Lower Caves | Build established: Executioner 8230 | -6/Lower Caves | Identified Tower Shield 8231 | -6/Lower Caves | Attached Tower Shield, gained temporary slots: Power, Propulsion x2, Utility x2, Weapon x2 8461 | -6/Lower Caves | Learned 4 Factory zone layouts 8487 | -6/Lower Caves | Discovered new exit (range 12) 8520 | -6/Lower Caves | Entered another Lower Caves area 8520 | -6/Lower Caves | Accompanied by 3 allies 8702 | -6/Lower Caves | Build established: Derelict-Gunner 9157 | -6/Lower Caves | X0-1V1 activates XOMVISION 9282 | -6/Lower Caves | Encountered a Warlord checkpoint 9478 | -6/Lower Caves | X0-1V1 sent you into danger 9490 | -6/Lower Caves | Attracted the attention of an 0b10 base 9527 | -6/Lower Caves | Destroyed 13 combat bots 9529 | -6/Lower Caves | Lost 4 parts (1n1u2w) 9636 | -6/Lower Caves | Discovered new exit (range 12) 9667 | -6/Lower Caves | Entered Zion 9772 | -6/Zion | Visited the Megawrench Repair Shop 9957 | -6/Zion | System corruption cleaned by Quarantine Array 10072 | -6/Zion | Build established: Derelict-Mutant 10202 | -6/Zion | Found Prototype Processor 10202 | -6/Zion | Identified Exp. Targeting Computer 10209 | -6/Zion | Found Prototype Processor 10209 | -6/Zion | Identified Spectral Analyzer 10432 | -6/Zion | Given A8's code to call for help 10779 | -6/Zion | Found Prototype Special Weapon 10779 | -6/Zion | Identified RU-N14's Throwing Claymores 10786 | -6/Zion | Found RU-N14's Throwing Claymores 10790 | -6/Zion | Found RU-N14's Throwing Claymores 10794 | -6/Zion | Found RU-N14's Throwing Claymores 11077 | -6/Zion | Turned away by Imprinter 11305 | -6/Zion | Build established: Mutant 11432 | -6/Zion | Learned location of Armory (-4) 11620 | -6/Zion | Megawrench repaired 13 parts 11904 | -6/Zion | Enhanced Grunt warped into view, answering call for help 11908 | -6/Zion | Enhanced Grunt warped into view, answering call for help 11933 | -6/Zion | Discovered new exit (range 4) 11933 | -6/Zion | Saw the warning signs outside the Deep Caves entrance 11946 | -6/Zion | Entered Deep Caves 11946 | -6/Deep Caves | Accompanied by 2 allies 11955 | -6/Deep Caves | Attached CPS modules to Enhanced Grunt 12157 | -6/Deep Caves | Z-Facility disabled 12164 | -6/Deep Caves | Attacked by Z-Imprinter 12165 | -6/Deep Caves | Attached CPS modules to Z-Imprinter 12172 | -6/Deep Caves | Allies destroyed Z-Imprinter 12318 | -6/Deep Caves | Found Prototype Device 12318 | -6/Deep Caves | Identified Zio. Metafield Generator 12529 | -6/Deep Caves | Discovered new exit (range 6) 12538 | -6/Deep Caves | Entered Proximity Caves 12538 | -5/Proximity Caves | Accompanied by 2 allies 12541 | -5/Proximity Caves | Spotter reported a threat 12542 | -5/Proximity Caves | Spotter reported a threat 12565 | -5/Proximity Caves | Build established: Scavenger-Mutant 12618 | -5/Proximity Caves | X0-1V1 activates XOMVISION 12829 | -5/Proximity Caves | X0-1V1 mutated your Utility slot to Weapon slot 12846 | -5/Proximity Caves | Discovered exit to Factory (range 16) 12863 | -5/Proximity Caves | Entered Factory 12863 | -5/Factory | Accompanied by 2 allies 12863 | -5/Factory | Evolved 2 slots: Propulsion x2 12872 | -5/Factory | X0-1V1 added 0b10 threat records associated with you (considerable) 12974 | -5/Factory | Discovered new exit (range 6) 13045 | -5/Factory | Discovered new exit (range 5) 13163 | -5/Factory | First assault squad dispatched 13194 | -5/Factory | Core integrity fell below 50% 13219 | -5/Factory | Entered another Factory area 13219 | -4/Factory | Evolved 2 slots: Utility x1, Weapon x1 13220 | -4/Factory | Identified exit to Armory 13241 | -4/Factory | Lost 18 parts (2p6n2u8w) 13278 | -4/Factory | Loaded intel: 8 recycling unit locations 13320 | -4/Factory | X0-1V1 released a cloud of subatomizers 13498 | -4/Factory | Build established: Gladiator 13536 | -4/Factory | Discovered new exit (range 7) 13621 | -4/Factory | X0-1V1 foreshadows a heat wave 13651 | -4/Factory | X0-1V1 announced a LAN party 13809 | -4/Factory | Entered Upper Caves 13869 | -4/Upper Caves | X0-1V1 sent you into danger 13920 | -4/Upper Caves | Lost 3 parts (1n1u1w) 13971 | -4/Upper Caves | Scrapoid Pod released 04U05-D (x5) 14027 | -4/Upper Caves | Found Scrap Suit 14280 | -4/Upper Caves | Build established: Scavenger-Scrapper 14290 | -4/Upper Caves | Identified exit to Upper Caves 14290 | -4/Upper Caves | X0-1V1 revealed exit location to -4/Upper Caves 14369 | -4/Upper Caves | Entered another Upper Caves area 14369 | -4/Upper Caves | Accompanied by 3 allies 14472 | -4/Upper Caves | System corruption reached 10% 14479 | -4/Upper Caves | System corruption reached 30% 14617 | -4/Upper Caves | Encountered a Warlord checkpoint 14634 | -4/Upper Caves | X0-1V1 mutated your Weapon slot to Utility slot 14656 | -4/Upper Caves | Discovered new exit (range 15) 14688 | -4/Upper Caves | Core integrity fell below 50% 14723 | -4/Upper Caves | Lost 4 parts (2p1n1u) 14723 | -4/Upper Caves | X0-1V1 sent hostile G-67 Veteran (x5) 14800 | -4/Upper Caves | Lost 3 parts (2n1u) 14801 | -4/Upper Caves | Build established: Scavenger-Gladiator 14821 | -4/Upper Caves | Found Scrap Suit 14832 | -4/Upper Caves | Identified exit to Research 14832 | -4/Upper Caves | X0-1V1 revealed exit location to -3/Research 14855 | -4/Upper Caves | Entered Warlord 14884 | -4/Warlord | System corruption cleaned by Quarantine Array 15082 | -4/Warlord | Rebuked by Warlord 15107 | -4/Warlord | Warlord's base attacked by MAIN.C 15117 | -4/Warlord | Build established: Scavenger-Scrapper 15181 | -4/Warlord | Found Prototype Energy Gun 15312 | -4/Warlord | Found Prototype Energy Gun 15312 | -4/Warlord | Identified Vortex Shotgun 15317 | -4/Warlord | Found Prototype Energy Gun 15317 | -4/Warlord | Identified Vortex Rail 15360 | -4/Warlord | Found Prototype Reactor 15360 | -4/Warlord | Identified Vortex Chain Reactor 15366 | -4/Warlord | Found Prototype Device 15366 | -4/Warlord | Identified Exp. Phase Shifter 15371 | -4/Warlord | Found Prototype Device 15371 | -4/Warlord | Identified Thermal Barrier 15385 | -4/Warlord | Found Prototype Hackware 15388 | -4/Warlord | Found Prototype Processor 15388 | -4/Warlord | Identified Exp. Target Analyzer 15394 | -4/Warlord | Core integrity restored by X0-1V1 (+362) 15457 | -4/Warlord | Warlord forces counterattacked 15463 | -4/Warlord | Attached CPS modules to LV-01A 15547 | -4/Warlord | X0-1V1 activates XOMVISION 15567 | -4/Warlord | Core integrity restored by X0-1V1 (+362) 15678 | -4/Warlord | Spotted B-86 Titan 15782 | -4/Warlord | Warlord base infiltrated, sounded retreat 15820 | -4/Warlord | Found Prototype Launcher 15820 | -4/Warlord | Identified Chain Missile Launcher 15855 | -4/Warlord | Destroyed Executioner 15874 | -4/Warlord | Spotted Striker 15875 | -4/Warlord | Destroyed Striker 15907 | -4/Warlord | Spotted Striker 15908 | -4/Warlord | Spotted Executioner 15911 | -4/Warlord | Destroyed Executioner 15918 | -4/Warlord | Identified exit to Proximity Caves 15918 | -4/Warlord | X0-1V1 revealed exit location to -3/Proximity Caves 15920 | -4/Warlord | Destroyed Striker 15955 | -4/Warlord | Destroyed 9 combat bots 15974 | -4/Warlord | Spotted Executioner 16029 | -4/Warlord | Spotted Executioner 16047 | -4/Warlord | Spotted Striker 16055 | -4/Warlord | Spotted Executioner 16070 | -4/Warlord | Found Prototype Launcher 16071 | -4/Warlord | Found Prototype Device 16071 | -4/Warlord | Identified Exp. Focal Shield 16074 | -4/Warlord | Found Prototype Device 16074 | -4/Warlord | Identified Matter Focus 16078 | -4/Warlord | Found Prototype Device 16078 | -4/Warlord | Identified Exp. Shock Absorption System 16109 | -4/Warlord | Entered Proximity Caves 16131 | -3/Proximity Caves | X0-1V1 revealed exit location to -3/Research 16148 | -3/Proximity Caves | X0-1V1 activates XOMVISION 16186 | -3/Proximity Caves | Entered Research 16186 | -3/Research | Evolved 2 slots: Propulsion x1, Utility x1 16239 | -3/Research | Loaded intel: 5 recycling unit locations 16274 | -3/Research | Identified Exp. Neutron Missile Launcher 16332 | -3/Research | Identified exit to Research 16332 | -3/Research | X0-1V1 revealed exit location to -2/Research 16349 | -3/Research | Identified System Mapper 16414 | -3/Research | System corruption reached 10% 16445 | -3/Research | Sensors blinded by X0-1V1 16501 | -3/Research | X0-1V1 enhanced Transport squad support 16530 | -3/Research | Identified exit to Testing 16530 | -3/Research | X0-1V1 mutated your Utility slot to Weapon slot 16534 | -3/Research | System corruption reached 30% 16668 | -3/Research | Entered Testing 16787 | -3/Testing | Spotted PY-2170CY10RY 16793 | -3/Testing | Superbehemoth self-activated to run performance analysis 16795 | -3/Testing | X0-1V1 sent you to a vault 16800 | -3/Testing | Found Vortex Chain Reactor 16803 | -3/Testing | Found Prototype Special Weapon 16803 | -3/Testing | Identified Gui. Remote Datajack 16810 | -3/Testing | Found Prototype Device 16810 | -3/Testing | Identified Active Sensor Suite 16818 | -3/Testing | Found System Mapper 16842 | -3/Testing | Found Exp. Focal Shield 16850 | -3/Testing | X0-1V1 revealed exit location to -2/Research 16892 | -3/Testing | X0-1V1 sent you into danger 16930 | -3/Testing | Found Prototype Launcher 16930 | -3/Testing | Identified Adv. Micro-nuke Launcher 16959 | -3/Testing | Lost 3 parts (3u) 16959 | -3/Testing | Found Prototype Device 16959 | -3/Testing | Identified 2N-1CE's Frost Array 16989 | -3/Testing | Found Prototype Protection 16989 | -3/Testing | Identified Lgt. Regenerative Plating 16991 | -3/Testing | Found Prototype Protection 16991 | -3/Testing | Identified Med. Regenerative Plating 17000 | -3/Testing | Entered Research 17000 | -2/Research | Evolved 2 slots: Propulsion x1, Utility x1 17040 | -2/Research | Identified Plasma Storm 17059 | -2/Research | Spotted B-90 Cyclops 17059 | -2/Research | X0-1V1 sent you into danger 17068 | -2/Research | Sensors blinded by X0-1V1 17074 | -2/Research | X0-1V1 enhanced Transport squad support 17082 | -2/Research | X0-1V1 added 0b10 threat records associated with you (minor) 17096 | -2/Research | Identified exit to Quarantine 17104 | -2/Research | Entered Quarantine 17135 | -2/Quarantine | X0-1V1 mutated your Weapon slot to Propulsion slot 17154 | -2/Quarantine | Found Alien Artifact 17162 | -2/Quarantine | X0-1V1 announced a LAN party 17166 | -2/Quarantine | Found Alien Slashing Weapon 17166 | -2/Quarantine | Identified Sigix Broadsword 17196 | -2/Quarantine | Found Unknown Launcher 17196 | -2/Quarantine | Identified Gamma Bomb Array 17207 | -2/Quarantine | System corruption reached 10% 17211 | -2/Quarantine | X0-1V1 sent you into danger 17252 | -2/Quarantine | Discovered new exit (range 10) 17298 | -2/Quarantine | Spotted Alpha 7 17354 | -2/Quarantine | Search patrols dispatched 17359 | -2/Quarantine | Identified exit to Section 7 17359 | -2/Quarantine | X0-1V1 revealed exit location to -2/Section 7 17366 | -2/Quarantine | X0-1V1 activates XOMVISION 17378 | -2/Quarantine | Found Alien Artifact 17378 | -2/Quarantine | Identified Core Reset Matrix 17378 | -2/Quarantine | Identified Subatomic Replicator 17378 | -2/Quarantine | Used Core Reset Matrix 17382 | -2/Quarantine | Detected hypermatrix surge 17382 | -2/Quarantine | Sensed 7 artifacts in vicinity 17398 | -2/Quarantine | Found Core Cannon 17455 | -2/Quarantine | Spotted Fortress 17456 | -2/Quarantine | X0-1V1 sent allied S-43 Plague (x4) 17486 | -2/Quarantine | Discovered exit to Section 7 (range 6) 17486 | -2/Quarantine | Discovered new exit (range 6) 17489 | -2/Quarantine | Identified exit to Protoforge 17489 | -2/Quarantine | Entered Protoforge 17490 | -2/Protoforge | Sensed 2 artifacts in vicinity 17495 | -2/Protoforge | Lost 3 allies 17527 | -2/Protoforge | Spotted Hotshot 17529 | -2/Protoforge | Spotted Hotshot 17547 | -2/Protoforge | Spotted EXE-6 17547 | -2/Protoforge | Spotted EXE-6 17547 | -2/Protoforge | Spotted SKR-2 17547 | -2/Protoforge | Spotted SKR-2 17547 | -2/Protoforge | Spotted SKR-2 17552 | -2/Protoforge | Spotted Overlord 17554 | -2/Protoforge | Superfortress began startup sequence 17573 | -2/Protoforge | UFD initiated attack on Protoforge (Readiness: Adequate) 17573 | -2/Protoforge | Loaded intel: 3 recycling unit locations 17580 | -2/Protoforge | Spotted EXE-6 17580 | -2/Protoforge | Spotted EXE-6 17609 | -2/Protoforge | Optimus greeted in Protoforge 17623 | -2/Protoforge | Found Prototype Processor 17623 | -2/Protoforge | Identified Exp. Core Analyzer 17626 | -2/Protoforge | Found Prototype Processor 17626 | -2/Protoforge | Identified Exp. Armor Integrity Analyzer 17634 | -2/Protoforge | X0-1V1 sent you to a vault 17639 | -2/Protoforge | Found Prototype Slashing Weapon 17639 | -2/Protoforge | Identified Hvy. Scimitar of Distortion 17643 | -2/Protoforge | Found Hvy. Scimitar of Distortion 17644 | -2/Protoforge | Found Prototype Device 17644 | -2/Protoforge | Identified System Purifier 17647 | -2/Protoforge | Found Prototype Device 17647 | -2/Protoforge | Identified Thermal Barrier 17650 | -2/Protoforge | Found Unknown Device 17650 | -2/Protoforge | Identified Adv. Force Booster 17653 | -2/Protoforge | Found Prototype Device 17653 | -2/Protoforge | Identified Exp. Shock Absorption System 17665 | -2/Protoforge | Spotted B-90 Cyclops 17669 | -2/Protoforge | X0-1V1 downgraded hostiles (x1) 17679 | -2/Protoforge | Spotted Hotshot 17692 | -2/Protoforge | Spotted Hotshot 17731 | -2/Protoforge | Additional patrols dispatched to research labs 17731 | -2/Protoforge | Spotted Immortal 17731 | -2/Protoforge | Spotted Immortal 17731 | -2/Protoforge | Spotted Immortal 17732 | -2/Protoforge | Spotted Immortal 17732 | -2/Protoforge | Spotted Decapitator 17733 | -2/Protoforge | Spotted Decapitator 17733 | -2/Protoforge | Spotted Decapitator 17734 | -2/Protoforge | Spotted Decapitator 17735 | -2/Protoforge | Destroyed Decapitator 17735 | -2/Protoforge | Destroyed Decapitator 17735 | -2/Protoforge | Destroyed Decapitator 17744 | -2/Protoforge | Destroyed Immortal 17770 | -2/Protoforge | Crushed by falling debris 17779 | -2/Protoforge | Destroyed Decapitator 17851 | -2/Protoforge | Destroyed 7 combat bots 17895 | -2/Protoforge | Found Prototype Device 17901 | -2/Protoforge | Spotted Immortal 17901 | -2/Protoforge | Spotted Immortal 17902 | -2/Protoforge | Spotted Decapitator 17902 | -2/Protoforge | Spotted Decapitator 17902 | -2/Protoforge | Spotted Decapitator 17905 | -2/Protoforge | Destroyed Decapitator 17907 | -2/Protoforge | Destroyed Decapitator 17907 | -2/Protoforge | Destroyed Decapitator 17909 | -2/Protoforge | Spotted Immortal 17909 | -2/Protoforge | Spotted Immortal 17915 | -2/Protoforge | Destroyed Immortal 17919 | -2/Protoforge | X0-1V1 sent allied H-88 Terminator (x5) 17928 | -2/Protoforge | Allies destroyed Immortal 17947 | -2/Protoforge | Identified Crosscalibrator 17951 | -2/Protoforge | Lost 3 parts (1p2u) 17962 | -2/Protoforge | Found Prototype Device 17962 | -2/Protoforge | Identified Exp. EM Disruption Field 17965 | -2/Protoforge | Found Prototype Device 17965 | -2/Protoforge | Identified Cep. Hardlight Director 17998 | -2/Protoforge | Spotted V588-t 17999 | -2/Protoforge | Allies destroyed V588-t 18034 | -2/Protoforge | UFD reported confirmed Drillbomb installation 18094 | -2/Protoforge | Allies destroyed Immortal 18094 | -2/Protoforge | Allies destroyed Immortal 18167 | -2/Protoforge | Found Prototype Storage 18167 | -2/Protoforge | Identified Cep. Antigrav Storage Unit 18173 | -2/Protoforge | Found Cep. NT7 Matterbank 18176 | -2/Protoforge | Found Cep. Chromion Battery 18178 | -2/Protoforge | Found Cep. Matter Streamer 18189 | -2/Protoforge | Found Cep. Chromion Battery 18257 | -2/Protoforge | Destroyed Immortal 18263 | -2/Protoforge | Allies destroyed Immortal 18307 | -2/Protoforge | Spotted Decapitator 18307 | -2/Protoforge | Spotted V408-e 18307 | -2/Protoforge | Spotted V674-i 18318 | -2/Protoforge | Lost 3 allies 18319 | -2/Protoforge | X0-1V1 sent allied Executioner (x2) 18320 | -2/Protoforge | Destroyed 8 combat bots 18344 | -2/Protoforge | Found Unknown Device 18359 | -2/Protoforge | Spotted Decapitator 18377 | -2/Protoforge | Core integrity fell below 50% 18383 | -2/Protoforge | Destroyed V408-e 18391 | -2/Protoforge | Destroyed Decapitator 18397 | -2/Protoforge | Destroyed Decapitator 18403 | -2/Protoforge | Found Prototype Device 18403 | -2/Protoforge | Identified Exp. Thermal Defense Suite 18406 | -2/Protoforge | Found Prototype Device 18406 | -2/Protoforge | Identified Exp. Shield Generator 18424 | -2/Protoforge | Found Exp. Jetlance 18428 | -2/Protoforge | Found Cep. Zero-point Core 18451 | -2/Protoforge | Found Femtoactuators 18454 | -2/Protoforge | Found Prototype Device 18454 | -2/Protoforge | Identified Cep. Weapon Articulator 18472 | -2/Protoforge | Forge Plexus network access discovered 18480 | -2/Protoforge | Found Exp. Jetlance 18491 | -2/Protoforge | X0-1V1 activates XOMVISION 18494 | -2/Protoforge | Core integrity restored by X0-1V1 (+434) 18495 | -2/Protoforge | Found Exp. Jetlance 18498 | -2/Protoforge | Found Cep. Deflector Sword 18500 | -2/Protoforge | Found Exp. Jetlance 18503 | -2/Protoforge | Found Cep. Plasma Driver 18505 | -2/Protoforge | Found Faulty Cep. Plasma Driver 18550 | -2/Protoforge | Spotted V914-a 18550 | -2/Protoforge | Spotted V950-b 18555 | -2/Protoforge | Spotted V208-s 18560 | -2/Protoforge | Found Cep. Gyrokinetic System 18562 | -2/Protoforge | Destroyed V950-b 18573 | -2/Protoforge | Destroyed V914-a 18580 | -2/Protoforge | Found Cep. Deflector Sword 18582 | -2/Protoforge | Found Med. Regenerative Plating 18598 | -2/Protoforge | Found Cep. Rapid Grenade Launcher 18602 | -2/Protoforge | Lost 5 parts (2n2u1w) 18613 | -2/Protoforge | Spotted Immortal 18613 | -2/Protoforge | Spotted Immortal 18614 | -2/Protoforge | Spotted Decapitator 18615 | -2/Protoforge | Spotted Decapitator 18618 | -2/Protoforge | Destroyed Decapitator 18628 | -2/Protoforge | Destroyed Immortal 18638 | -2/Protoforge | Destroyed Immortal 18646 | -2/Protoforge | Spotted Immortal 18646 | -2/Protoforge | Spotted Immortal 18649 | -2/Protoforge | Spotted V285-p 18649 | -2/Protoforge | Spotted V346-o 18694 | -2/Protoforge | Build established: Scavenger-Sprinter 18710 | -2/Protoforge | Found Cep. Zero-point Core 18731 | -2/Protoforge | Found Faulty Cep. Zero-point Core 18736 | -2/Protoforge | Found Faulty Cep. Zero-point Core 18750 | -2/Protoforge | Spotted AP7-3 18750 | -2/Protoforge | Spotted AP7-3 18776 | -2/Protoforge | Used Subatomic Replicator to replicate Faulty Cep. Impact Drone Bay 18782 | -2/Protoforge | Found Faulty Cep. Impact Drone Bay 18783 | -2/Protoforge | Found Faulty Cep. Blasthammer 18787 | -2/Protoforge | Found Faulty Cep. Blasthammer 18789 | -2/Protoforge | Found Cep. Core Analysis Suite 18793 | -2/Protoforge | Found Faulty Cep. Core Analysis Suite 18796 | -2/Protoforge | Found Cep. Cloak Mesh 18798 | -2/Protoforge | Found Cep. Cloak Mesh 18818 | -2/Protoforge | Found Faulty Cep. Zero-point Core 18848 | -2/Protoforge | Destroyed AP7-3 18893 | -2/Protoforge | Core integrity restored by X0-1V1 (+434) 18928 | -2/Protoforge | Found Cep. Gyrokinetic System 18955 | -2/Protoforge | Identified exit to Access 18955 | -2/Protoforge | X0-1V1 revealed exit location to -1/Access 18967 | -2/Protoforge | Found Cep. Combat Aerolev Unit 18976 | -2/Protoforge | Found Faulty Cep. Combat Aerolev Unit 18984 | -2/Protoforge | X0-1V1 added 0b10 threat records associated with you (major) 19016 | -2/Protoforge | Found Cep. Thermoelectric Network 19052 | -2/Protoforge | Found Transdimensional Reconstructor 19143 | -2/Protoforge | Found Faulty Cep. Hardlight Director 19226 | -2/Protoforge | X0-1V1 added 0b10 threat records associated with you (minor) 19242 | -2/Protoforge | Found Hvy. Regenerative Plating 19389 | -2/Protoforge | X0-1V1 activates XOMVISION 19469 | -2/Protoforge | Spotted Executioner 19486 | -2/Protoforge | Spotted Executioner 19506 | -2/Protoforge | Found Exp. Core Analyzer 19530 | -2/Protoforge | X0-1V1 activates XOMVISION 19547 | -2/Protoforge | Spotted Executioner 19554 | -2/Protoforge | Destroyed Executioner 19554 | -2/Protoforge | Spotted Striker 19558 | -2/Protoforge | Destroyed Executioner 19566 | -2/Protoforge | Spotted Striker 19581 | -2/Protoforge | Destroyed 16 combat bots 19595 | -2/Protoforge | Lost 7 allies 19646 | -2/Protoforge | Spotted Executioner 19677 | -2/Protoforge | Spotted Executioner 19695 | -2/Protoforge | Spotted Striker 19696 | -2/Protoforge | Spotted Striker 19697 | -2/Protoforge | Spotted Executioner 19720 | -2/Protoforge | P-80 Master assimilated allied WG-KW6(j) 19730 | -2/Protoforge | Destroyed Executioner 19735 | -2/Protoforge | Spotted Executioner 19764 | -2/Protoforge | Spotted Executioner 19764 | -2/Protoforge | Spotted Striker 19772 | -2/Protoforge | Lost 10 allies 19776 | -2/Protoforge | Destroyed Striker 19786 | -2/Protoforge | Spotted Executioner 19786 | -2/Protoforge | Spotted Striker 19797 | -2/Protoforge | Destroyed 18 combat bots 19804 | -2/Protoforge | Spotted Executioner 19804 | -2/Protoforge | Spotted Striker 19837 | -2/Protoforge | Lost 5 allies 19841 | -2/Protoforge | X0-1V1 vaporized surrounding terrain (radius 20) 19892 | -2/Protoforge | Spotted Striker 19894 | -2/Protoforge | X0-1V1 whisked you away to safety 19945 | -2/Protoforge | X0-1V1 mutated your Propulsion slot to Weapon slot 19962 | -2/Protoforge | Spotted Executioner 19963 | -2/Protoforge | Spotted Striker 19975 | -2/Protoforge | Crushed by falling debris 19986 | -2/Protoforge | Found UFD Drillbomb 20057 | -2/Protoforge | X0-1V1 whisked you away to safety 20106 | -2/Protoforge | Installed UFD Drillbomb at designated target 20106 | -2/Protoforge | UFD reported confirmed Drillbomb installation 20107 | -2/Protoforge | Found UFD Drillbomb 20140 | -2/Protoforge | X0-1V1 turns hostiles against one another 20159 | -2/Protoforge | Installed UFD Drillbomb at designated target 20159 | -2/Protoforge | UFD reported confirmed Drillbomb installation 20180 | -2/Protoforge | X0-1V1 mutated your Utility slot to Propulsion slot 20206 | -2/Protoforge | Found UFD Drillbomb 20210 | -2/Protoforge | X0-1V1 sent hostile Thug (x2) 20214 | -2/Protoforge | X0-1V1 mutated your Propulsion slot to Utility slot 20217 | -2/Protoforge | X0-1V1 added 0b10 threat records associated with you (minor) 20220 | -2/Protoforge | Spotted Executioner 20252 | -2/Protoforge | Lost 4 allies 20268 | -2/Protoforge | Spotted Executioner 20269 | -2/Protoforge | Spotted Striker 20270 | -2/Protoforge | X0-1V1 sent allied Immortal (x2) 20270 | -2/Protoforge | Allies destroyed Striker 20287 | -2/Protoforge | Installed UFD Drillbomb at designated target 20287 | -2/Protoforge | UFD reported confirmed Drillbomb installation 20307 | -2/Protoforge | Found UFD Drillbomb 20314 | -2/Protoforge | X0-1V1 turns hostiles against one another 20329 | -2/Protoforge | X0-1V1 vaporized surrounding terrain (radius 18) 20350 | -2/Protoforge | Lost 3 allies 20350 | -2/Protoforge | Installed UFD Drillbomb at designated target 20350 | -2/Protoforge | UFD reported confirmed Drillbomb installation 20361 | -2/Protoforge | Found UFD Drillbomb 20367 | -2/Protoforge | X0-1V1 activates XOMVISION 20370 | -2/Protoforge | Spotted Striker 20413 | -2/Protoforge | Found Adv. Force Booster 20436 | -2/Protoforge | X0-1V1 activates XOMVISION 20437 | -2/Protoforge | X0-1V1 mutated your Weapon slot to Utility slot 20441 | -2/Protoforge | Spotted Executioner 20441 | -2/Protoforge | Spotted Executioner 20441 | -2/Protoforge | X0-1V1 sent you into danger 20441 | -2/Protoforge | Spotted Striker 20442 | -2/Protoforge | Spotted Executioner 20442 | -2/Protoforge | Spotted Executioner 20451 | -2/Protoforge | X0-1V1 whisked you away to safety 20457 | -2/Protoforge | X0-1V1 sent hostile Y-72 Warden (x2) 20458 | -2/Protoforge | Lost 5 allies 20475 | -2/Protoforge | Spotted Striker 20476 | -2/Protoforge | Found Hvy. Scimitar of Distortion 20486 | -2/Protoforge | Spotted Striker 20498 | -2/Protoforge | Found UFD Drillbomb 20524 | -2/Protoforge | Installed UFD Drillbomb at designated target 20524 | -2/Protoforge | UFD reported confirmed Drillbomb installation 20525 | -2/Protoforge | X0-1V1 downgraded hostiles (x2) 20539 | -2/Protoforge | Destroyed Striker 20607 | -2/Protoforge | Crushed by falling debris 20640 | -2/Protoforge | Found Cep. Rapid Grenade Launcher 20666 | -2/Protoforge | Spotted V123-c 20682 | -2/Protoforge | Destroyed V123-c 20685 | -2/Protoforge | Found Cep. Combat Aerolev Unit 20709 | -2/Protoforge | X0-1V1 activates XOMVISION 20717 | -2/Protoforge | Core integrity restored by X0-1V1 (+372) 20747 | -2/Protoforge | Found Cep. Gyrokinetic System 20790 | -2/Protoforge | Destroyed Immortal 20794 | -2/Protoforge | Found Prototype Protection 20794 | -2/Protoforge | Identified Cep. Core Shell 20817 | -2/Protoforge | Spotted V343-i 20817 | -2/Protoforge | X0-1V1 sent you into danger 20834 | -2/Protoforge | Destroyed Immortal 20868 | -2/Protoforge | Found Cep. Combat Aerolev Unit 20885 | -2/Protoforge | X0-1V1 announced a LAN party 20893 | -2/Protoforge | X0-1V1 activates XOMVISION 20901 | -2/Protoforge | X0-1V1 mutated your Utility slot to Propulsion slot 20904 | -2/Protoforge | X0-1V1 sent hostile H-77 Assassin (x2) 20915 | -2/Protoforge | X0-1V1 added 0b10 threat records associated with you (minor) 20945 | -2/Protoforge | X0-1V1 sent you into danger 20946 | -2/Protoforge | X0-1V1 whisked you away to safety 20950 | -2/Protoforge | X0-1V1 added 0b10 threat records associated with you (major) 20951 | -2/Protoforge | X0-1V1 mutated your Propulsion slot to Utility slot 20951 | -2/Protoforge | Found Exp. Thermal Defense Suite 20957 | -2/Protoforge | X0-1V1 sent hostile H-77 Assassin (x3) 20963 | -2/Protoforge | X0-1V1 vaporized surrounding terrain (radius 24) 20994 | -2/Protoforge | X0-1V1 mutated your Utility slot to Propulsion slot 21010 | -2/Protoforge | X0-1V1 activates XOMVISION 21021 | -2/Protoforge | Weapon slot count temporarily expanded by X0-1V1 (+2) 21043 | -2/Protoforge | X0-1V1 mutated your Propulsion slot to Weapon slot 21098 | -2/Protoforge | Spotted Striker 21100 | -2/Protoforge | Spotted Striker 21102 | -2/Protoforge | Destroyed Striker 21173 | -2/Protoforge | UFD reported confirmed Drillbomb installation 21190 | -2/Protoforge | Spotted Striker 21198 | -2/Protoforge | Destroyed Executioner 21200 | -2/Protoforge | Spotted Executioner 21202 | -2/Protoforge | Destroyed Executioner 21222 | -2/Protoforge | X0-1V1 whisked you away to safety 21225 | -2/Protoforge | Lost 8 allies 21236 | -2/Protoforge | Spotted Executioner 21236 | -2/Protoforge | Spotted Executioner 21236 | -2/Protoforge | Spotted Executioner 21236 | -2/Protoforge | Destroyed Executioner 21236 | -2/Protoforge | Destroyed Executioner 21240 | -2/Protoforge | Destroyed Executioner 21246 | -2/Protoforge | Spotted Executioner 21251 | -2/Protoforge | Spotted Striker 21253 | -2/Protoforge | Spotted Striker 21256 | -2/Protoforge | Destroyed Executioner 21256 | -2/Protoforge | Destroyed Striker 21261 | -2/Protoforge | Spotted Executioner 21262 | -2/Protoforge | Spotted Executioner 21265 | -2/Protoforge | Destroyed Executioner 21266 | -2/Protoforge | Destroyed Executioner 21287 | -2/Protoforge | Destroyed 51 combat bots 21314 | -2/Protoforge | Lost 4 parts (2u2w) 21359 | -2/Protoforge | X0-1V1 vaporized surrounding terrain (radius 16) 21371 | -2/Protoforge | Found Mni. Quantum Capacitor 21372 | -2/Protoforge | Found Cep. Weapon Articulator 21375 | -2/Protoforge | Found Femtoactuators 21385 | -2/Protoforge | X0-1V1 sent allied C-57 Dissector (x4) 21389 | -2/Protoforge | X0-1V1 whisked you away to safety 21398 | -2/Protoforge | Spotted Executioner 21398 | -2/Protoforge | X0-1V1 sent you into danger 21486 | -2/Protoforge | Found UFD Drillbomb 21542 | -2/Protoforge | Installed UFD Drillbomb at designated target 21542 | -2/Protoforge | UFD reported confirmed Drillbomb installation 21553 | -2/Protoforge | Spotted Executioner 21561 | -2/Protoforge | Destroyed Executioner 21588 | -2/Protoforge | Spotted Executioner 21589 | -2/Protoforge | Spotted Striker 21597 | -2/Protoforge | X0-1V1 vaporized surrounding terrain (radius 16) 21600 | -2/Protoforge | X0-1V1 activates XOMVISION 21607 | -2/Protoforge | Found UFD Drillbomb 21611 | -2/Protoforge | Spotted Executioner 21622 | -2/Protoforge | Installed UFD Drillbomb at designated target 21622 | -2/Protoforge | UFD reported confirmed Drillbomb installation 21633 | -2/Protoforge | Found UFD Drillbomb 21639 | -2/Protoforge | Spotted Striker 21724 | -2/Protoforge | Spotted Executioner 21724 | -2/Protoforge | Spotted Striker 21724 | -2/Protoforge | Spotted Striker 21724 | -2/Protoforge | Spotted Executioner 21734 | -2/Protoforge | Destroyed Executioner 21742 | -2/Protoforge | Allies destroyed Striker 21744 | -2/Protoforge | Allies destroyed Striker 21748 | -2/Protoforge | Spotted Striker 21748 | -2/Protoforge | Spotted Striker 21749 | -2/Protoforge | X0-1V1 turns hostiles against one another 21751 | -2/Protoforge | P-80 Master assimilated hostile G-73 Enforcer 21767 | -2/Protoforge | Lost 7 parts (1n2u4w) 21793 | -2/Protoforge | Lost 8 allies 21800 | -2/Protoforge | Found Exp. Core Analyzer 21832 | -2/Protoforge | X0-1V1 activates XOMVISION 21845 | -2/Protoforge | Weapon slot count temporarily expanded by X0-1V1 (+2) 21889 | -2/Protoforge | Found Cep. Deflector Sword 21893 | -2/Protoforge | Found Exp. Jetlance 21896 | -2/Protoforge | Found Cep. Lightning Penetrator 21898 | -2/Protoforge | Found Cep. Plasma Driver 21901 | -2/Protoforge | Spotted V488-f 21901 | -2/Protoforge | Spotted V601-p 22037 | -2/Protoforge | X0-1V1 added 0b10 threat records associated with you (considerable) 22051 | -2/Protoforge | Found Prototype Device 22055 | -2/Protoforge | Identified Exp. Active Sensor Suite 22069 | -2/Protoforge | Found Cep. Gyrokinetic System 22072 | -2/Protoforge | Found Exp. Active Sensor Suite 22077 | -2/Protoforge | Found Prototype Device 22077 | -2/Protoforge | Identified Exp. EM Shield 22123 | -2/Protoforge | X0-1V1 activates XOMVISION 22141 | -2/Protoforge | Spotted Executioner 22144 | -2/Protoforge | Spotted Executioner 22159 | -2/Protoforge | Spotted Executioner 22159 | -2/Protoforge | Spotted Executioner 22200 | -2/Protoforge | Installed UFD Drillbomb at designated target 22200 | -2/Protoforge | UFD reported confirmed Drillbomb installation 22201 | -2/Protoforge | UFD began Drillbomb countdown 22201 | -2/Protoforge | Entered Access 22201 | -1/Access | Evolved 2 slots: Power x1, Utility x1 22303 | -1/Access | X0-1V1 enhanced Transport squad support 22339 | -1/Access | High security lockdown imminent 22419 | -1/Access | High security lockdown engaged 22506 | -1/Access | Build established: Scavenger-Ninja 22519 | -1/Access | Spotted B-99 Colossus 22520 | -1/Access | X0-1V1 sent you to a vault 22520 | -1/Access | X0-1V1 rewrote Electro 10c IFF filter 22596 | -1/Access | System corruption reached 10% 22680 | -1/Access | X0-1V1 destroyed Energy Cycler 22680 | -1/Access | Energy Cycler disabled 22801 | -1/Access | X0-1V1 mutated your Utility slot to Propulsion slot 22962 | -1/Access | X0-1V1 mutated your Weapon slot to Utility slot 22991 | -1/Access | Spotted B-99 Colossus 22991 | -1/Access | X0-1V1 sent you into danger 23007 | -1/Access | X0-1V1 added 0b10 threat records associated with you (minor) 23017 | -1/Access | Spotted Executioner 23017 | -1/Access | Spotted Executioner 23033 | -1/Access | Identified exit to Command 23033 | -1/Access | X0-1V1 revealed exit location to -1/Command 23047 | -1/Access | X0-1V1 redirected Transport squads to designated parking area 23078 | -1/Access | Entered Command 23099 | -1/Command | Spotted Executioner 23100 | -1/Command | Spotted Executioner 23106 | -1/Command | Destroyed Executioner 23108 | -1/Command | Destroyed Executioner 23121 | -1/Command | Spotted Executioner 23121 | -1/Command | Spotted Executioner 23127 | -1/Command | Destroyed Executioner 23131 | -1/Command | Destroyed Executioner 23148 | -1/Command | Spotted Combat Programmer 23168 | -1/Command | Spotted M Guard 23168 | -1/Command | Spotted M Guard 23298 | -1/Command | Spotted Combat Programmer 23318 | -1/Command | Build established: Scavenger-Sprinter 23327 | -1/Command | X0-1V1 sent you to a vault 23328 | -1/Command | First assault squad dispatched 23328 | -1/Command | Found Hvy. Scimitar of Distortion 23331 | -1/Command | Found Unknown Launcher 23331 | -1/Command | Identified Fusion Bomb Launcher 23336 | -1/Command | Found Exp. EM Shield 23338 | -1/Command | Found Prototype Device 23338 | -1/Command | Identified Exp. Cloaking Device 23355 | -1/Command | Lost 7 parts (1p3n2u1w) 23365 | -1/Command | High security lockdown imminent 23414 | -1/Command | Core integrity fell below 50% 23414 | -1/Command | X0-1V1 turns hostiles against one another 23414 | -1/Command | Combat Programmer assimilated hostile C-57 Dissector 23416 | -1/Command | Combat Programmer assimilated hostile C-57 Dissector 23441 | -1/Command | Lost 17 parts (4p7n6u) 23445 | -1/Command | High security lockdown engaged 23448 | -1/Command | Met MAIN.C 23464 | -1/Command | MAIN.C activated Command garrisons 23477 | -1/Command | Destroyed MAIN.C Shell 23481 | -1/Command | 0b10 Conduit disabled 23486 | -1/Command | X0-1V1 sent allied G-67 Veteran (x4) 23493 | -1/Command | Found Exp. Core Analyzer 23525 | -1/Command | Lost 5 allies 23529 | -1/Command | Destroyed MAIN.C 23531 | -1/Command | Discovered new exit (range 31) 23531 | -1/Command | Discovered new exit (range 100) 23531 | -1/Command | Extracted map data and part IDs from MAIN.C's data core 23579 | -1/Command | Released all parts (14) 23621 | -1/Command | Identified exit to Access_0 23621 | -1/Command | X0-1V1 revealed exit location to -1/Access_0 23642 | -1/Command | Core integrity restored by X0-1V1 (+425) 23682 | -1/Command | X0-1V1 sent hostile X-87 Electro (x3) 23869 | -1/Command | All MAIN.C guards destroyed 23884 | -1/Command | Build established: Mutant 23996 | -1/Command | X0-1V1 activates XOMVISION 24028 | -1/Command | Core integrity restored by X0-1V1 (+425) 24075 | *** | Heading to fleet! Last Messages --------------- 23978_ System corrupted: Matter fused (-5). 23996_ Suggestive images of robots vie for attention in your data streams. 23996_ X0-1V1: "Enjoy your XOMVISION!" 23999_ System corrupted: Heat flow error (+223). 24005_ Matter capacity returns to normal. 24015_ X0-1V1 causes your matter storage to temporarily balloon in size. (+600 matter capacity) 24028_ X0-1V1: "See? It buffs right out!" (+425 core integrity) 24034_ Acquired 7 matter. 24035_ Acquired 78 matter. 24035_ Extracted 10 energy. 24037_ System corrupted: Matter fused (-5). 24037_ The unstable cave ceiling collapses. 24039_ Acquired 62 matter. 24039_ Acquired 86 matter. 24041_ Acquired 70 matter. 24049_ Extracted 10 energy. 24055_ X0-1V1 makes important surrounding features appear closer to you (+3 sight range). [Achievement: Unfinished Business] Map ----- +----------------------------------------------------+ | ##!%# ######## ## + + # "" ##][ | | ##%*# * # # %## ### ] # """ ##!! | | ?# # # # %"# #?# # %"R ##!! | | ?# # " #%%## #?# # """ #### | | ?# + "" + # !#########?######## """ #??? | | ?# " T" # + #????????????????# #??? | | ## # "" # ! " #????????????????# #??# | | # ####+### ####################+##+###?# | | ## # #??# ## # #?# | | ?# ##+##"""###+## ! # #?# | | ?# ## #?#" # / #?# | | ## ## #?## # ################# # #?# | | # *# #??# % ######????????######## # #?# | | # ""%# #??# #?????????????# # %# #?# | | # T =# #??#== #?????????????# # # #?# | | # # #??#=] #?????????????# / ! # ! #?# | | ## #??#[%! #?????????????# ! # #?# | | ?# ####%=* #?????????????# % ####?# | | ?# #"#%[[%! #?????????????# # ! #???# | | ?# %/%==* ##????????????###### # =% #???# | | ## =%!%#%!! #????????????????# * ## ##??# | | = "= ##????????????????# # ##?# | | %=* + #?????????????????# # # #?# | | !=%####### #?????#####???????# # ! ##[!### | | =/#?????####"+##?????# ########### * !* | | % #########= ####### @ ## ## # = %= | | [%[ ## ## # % | | =*! ## ### # #### | | ##### ############ ## ### ### ##??# | | ###### #???######??????????# ## #???# | | ###### #??????########?????#!![ ## #???# | | #??????# !#?????#!![ ## "" #???# | | #??????# #######![[ ## """"#???# | | ###### #??????# + + ## """"#???? | | ## #??????# // ####### #" "" #???? | | ## ######## // #?????# #% % #???? | | ## #""""""# // #?????# ##% #???? | | ## + """# #########+### #"########???? | | ## + """#! + ###???????????? | | ## + """# ## #?????????????? | | ## #""""""# ## ##########????? | | ################ ## #????? | | ???????????????#! !## ### ##+#####+#????? | | ################ ## #?# # #????? | | # ###+###### #?# # #????? | | # #?# + #????? | | #?# # "" #????? | | #?# # = """"#????? | | # =!= #?# + """"#????? | | # =! ########## # "" #????? | +----------------------------------------------------+ Best States ------------- Heat Dissipation 284 Coolant Potential 120 Energy Generation 107 Energy Capacity 2100 Matter Stores 900 Matter Capacity 1000 Sight Range 26 Robot Scan Range 20 Terrain Scan Density 10 Jamming Range 22 Cloak Strength 9 Additional Mass Support 20 Armor Coverage 2100 Resistance: KI 54 Resistance: TH 48 Resistance: EX 75 Resistance: EM 75 Propulsion Shielding 33 Utility Shielding 90 Weapon Shielding 90 Projectile Deflection 15 Weapon Cycling 30 Melee Speed Boost 50 Phase Shifting 20 Evasion (%) 88 Targeting Accuracy 30 Melee Accuracy 10 Target Analysis 10 Core Analysis 11 Armor Integrity Analysis 50 Recoil Reduction 4 Particle Charging 30 Kinecelleration 50 Force Boost 40 Salvage Targeting 4 Offensive Hacking 20 Item Schematics ----------------- Exp. Actuator Array | -2/Protoforge | Archive Vibroblade | -2/Protoforge | Archive Imp. Lightning Gun | -2/Protoforge | Archive Robot Schematics ------------------ A-15 Conveyor | -2/Protoforge | Archive A-02 Transporter | -2/Protoforge | Archive Fabricated ------------ Nothing Repaired ---------- Nothing Studied --------- None Alien Tech Used ----------------- Sigix Broadsword Core Reset Matrix Core Cannon Subatomic Replicator Achievements -------------- Fine I'll Do It Myself Survival Of The Most Covered Unfinished Business Challenges ------------ None Game ------ Seed BladeInterdictionSource Manual? 0 Play Time 04:51:56 Cumulative 535.4 hours Start 2026.06.26 @ 18:42:47 End 2026.06.27 @ 13:36:00 Sessions 9 Manual Loads 0 Difficulty Rogue Special Mode None Game No. 447 Rogue 411 Adventurer 36 Explorer 0 Win Type 2 Total 26 Types 10/0/14/0/0/1/1/0/0/0 Lore% 73 Gallery% 85 Achievement% 73 Wizard Run 0 Options --------- Layout 0 ASCII 0 Keyboard 0 Movement Mouse Keybinds 0 Fullscreen 1 Font 18/SmallcapsGlow Map View 76x50 Zoom Use 0% Tactical HUD 1 Map Filters NONE Filters NONE Steam 1 RUN: 0c686a10-499d-4dec-a89b-6dfbca5aea79